Workbook

Sheet Recapitulatif état dossier
A1: Date | B1: =TODAY() -> 2018-03-20
A3: Total Dossiers | B3: =SUM(Factures[Facturation totale]) -> 62273.39 | E3: Chiffre d'affaire
G4: Honoraires HT
A5: Cash Dehors | B5: =B3-G6-G5-G7 -> 6044.5 | E5: Total encaissé en 2016 | G5: =SUMIFS(Factures[Montant 1],Factures[Etat1],"Facture close",Factures[Date de paiement 1],"<31/12/2016")+SUMIFS(Factures[Montant 2],Factures[Etat2],"Facture close",Factures[Date de paiement 2],"<31/12/2016")+SUMIFS(Factures[Montant 4],Factures[Etat 4],"Facture close",Factures[Date de paiement 4],"<31/12/2016") -> 0
E6: Total encaissé en 2017 | G6: =SUMIFS(Factures[Montant 1],Factures[Etat1],"Facture close",Factures[Date de paiement 1],"<31/12/2017",Factures[Date de paiement 1],">31/12/2016")+SUMIFS(Factures[Montant 2],Factures[Etat2],"Facture close",Factures[Date de paiement 2],"<31/12/2017", Factures[Date de paiement 2],">31/12/2016")+SUMIFS(Factures[Montant 4],Factures[Etat 4],"Facture close",Factures[Date de paiement 4],"<31/12/2017",Factures[Date de paiement 4],">31/12/2016") -> 32798.89
A7: Dont a facturer | B7: =SUMIFS(Factures[Facturation totale],Factures[Etat1],"A FACTURER")+SUMIFS(Factures[Montant 2],Factures[Etat2],"A FACTURER")+SUMIFS(Factures[Montant 3],Factures[Etat 3],"A FACTURER")+SUMIFS(Factures[Montant 4],Factures[Etat 4],"A FACTURER") -> 3000 | E7: Total encaissé en 2018 | G7: =SUMIFS(Factures[Montant 1],Factures[Etat1],"Facture close",Factures[Date de paiement 1],">31/12/2017")+SUMIFS(Factures[Montant 2],Factures[Etat2],"Facture close",Factures[Date de paiement 2],">31/12/2017")+SUMIFS(Factures[Montant 4],Factures[Etat 4],"Facture close",Factures[Date de paiement 4],">31/12/2017")+SUMIFS(Factures[Montant 3],Factures[Etat 3],"Facture close",Factures[Date de paiement 3],">31/12/2017") -> 23430
A10: FACTURES EN ATTENTE DE PAIEMENT
A11: En attente de paiement dossiers 2016 | C11: =SUMIFS(Factures[Montant 1],Factures[Etat1],"En attente de paiement",Factures[Date d''émission 1],"<31/12/2016")+SUMIFS(Factures[Montant 2],Factures[Etat2],"En attente de paiement",Factures[Date d''émission 2],"<31/12/2016")+SUMIFS(Factures[Montant 4],Factures[Etat 3],"En attente de paiement",Factures[Date d''émission 3],"<31/12/2016") -> 0 | F11: 2017 | G11: 2018
A12: En attente de paiement dossiers 2017 | C12: =SUMIFS(Factures[Montant 1],Factures[Etat1],"En attente de paiement",Factures[Date d''émission 1],"<31/12/2017")+SUMIFS(Factures[Montant 2],Factures[Etat2],"En attente de paiement",Factures[Date d''émission 2],"<31/12/2017")+SUMIFS(Factures[Montant 4],Factures[Etat 4],"En attente de paiement",Factures[Date d''émission 4],"<31/12/2017")+SUMIFS(Factures[Montant 3],Factures[Etat 3],"En attente de paiement",Factures[Date d''émission 3],"<31/12/2017") -> 0 | E12: black encaissé | F12: =Facturation!F60+Facturation!L8+Facturation!F69+Facturation!F73+Facturation!F43 -> 428.9 | G12: =Facturation!R11 -> 0
A13: En attente de paiement dossiers 2018 | C13: =SUMIFS(Factures[Montant 1],Factures[Etat1],"En attente de paiement",Factures[Date d''émission 1],">31/12/2017")+SUMIFS(Factures[Montant 2],Factures[Etat2],"En attente de paiement",Factures[Date d''émission 2],">31/12/2017")+SUMIFS(Factures[Montant 4],Factures[Etat 4],"En attente de paiement",Factures[Date d''émission 4],">31/12/2017")+SUMIFS(Factures[Montant 3],Factures[Etat 3],"En attente de paiement",Factures[Date d''émission 3],">31/12/2017") -> 1750 | E13: Imposable | F13: =G6-F12 -> 32369.99 | G13: =G7-G12 -> 23430
A14: Total | C14: =SUM(C11:C13) -> 1750
F16: Nouveaux dossiers entrant 2018
C17: Ludo | D17: Autres
A18: Rétrocession au titre de 2017 | C18: =SUMIFS(#REF!,#REF!,"<31/12/2017") ->  | F18: =SUMIFS(#REF!,Dossier[Date entrée],">31/12/2017") -> 
A19: rétrocessionau titre de 2018 | C19: =SUMIFS(#REF!,#REF!,">31/12/2017") ->  | D19: =SUMIFS(#REF!,#REF!,">31/12/2017") -> 
A20: Total | C20: =SUM(C18:C19) ->  | D20: =SUM(D18:D19) -> 
H23: Honoraire HT fisca
F24: Total facturé et payé en 2017 pour 2017 | H24: =SUMIFS(Factures[Montant 1],Factures[Etat1],"Facture close",Factures[Date d''émission 1],"<31/12/2017",Factures[Date d''émission 1],">31/12/2016")+SUMIFS(Factures[Montant 2],Factures[Etat2],"Facture close",Factures[Date d''émission 2],"<31/12/2017",Factures[Date d''émission 2],">31/12/2016")+SUMIFS(Factures[Montant 4],Factures[Etat 4],"Facture close",Factures[Date d''émission 4],"<31/12/2017",Factures[Date d''émission 4],">31/12/2016") -> 36548.89
F25: Total facturé et encaissé en 2017 pour 2017 | H25: =SUMIFS(Factures[Montant 1],Factures[Etat1],"Facture close",Factures[Date d''émission 1],"<31/12/2017",Factures[Date d''émission 1],">31/12/2016",Factures[Date de paiement 1],"<31/12/2017")+SUMIFS(Factures[Montant 2],Factures[Etat2],"Facture close",Factures[Date d''émission 2],"<31/12/2017",Factures[Date d''émission 2],">31/12/2016",Factures[Date de paiement 2],">31/12/2017")+SUMIFS(Factures[Montant 4],Factures[Etat 4],"Facture close",Factures[Date d''émission 4],"<31/12/2017",Factures[Date d''émission 4],">31/12/2016",Factures[Date de paiement 4],">31/12/2017") -> 16775.1
F26: Provisions | H26: =H24-H25 -> 19773.79

Sheet Dossiers
A2: NOM | B2: Nom du dossier | C2: Type de Dossier | D2: Date entrée | E2: Etat facturation | J2: Corporate | K2: oui | L2: variable
A3: balot | B3: c/ d1 | C3: Commercial | E3: =IF(Factures[[#This Row],[somme]]=Factures[[#This Row],[Facturation totale]],"Dossier Clos","En cours") -> Dossier Clos | J3: Social
A4: cdh | B4: Cdh c/ annuaie | C4: Commercial | E4: =IF(Factures[[#This Row],[somme]]=Factures[[#This Row],[Facturation totale]],"Dossier Clos","En cours") -> En cours | J4: Civil
A5: cdh | B5: c/ Pierre | C5: Commercial | E5: =IF(Factures[[#This Row],[somme]]=Factures[[#This Row],[Facturation totale]],"Dossier Clos","En cours") -> Dossier Clos | J5: Commercial
A6: cdh | B6: c/sosie | C6: Commercial | E6: =IF(Factures[[#This Row],[somme]]=Factures[[#This Row],[Facturation totale]],"Dossier Clos","En cours") -> En cours | J6: penal
A7: cote machin | B7: Consultation Coté c/ Taurus | C7: Commercial | E7: =IF(Factures[[#This Row],[somme]]=Factures[[#This Row],[Facturation totale]],"Dossier Clos","En cours") -> Dossier Clos
A8: dora | B8: dora licenciement | C8: Social | E8: =IF(Factures[[#This Row],[somme]]=Factures[[#This Row],[Facturation totale]],"Dossier Clos","En cours") -> En cours
A9: lesvins d alsace | B9: Levée de fonds | C9: Corporate | E9: =IF(Factures[[#This Row],[somme]]=Factures[[#This Row],[Facturation totale]],"Dossier Clos","En cours") -> Dossier Clos
A10: dotera | B10: c/ L2 | C10: Civil | E10: =IF(Factures[[#This Row],[somme]]=Factures[[#This Row],[Facturation totale]],"Dossier Clos","En cours") -> En cours
A11: desire | B11: c/ veolia | C11: Social | E11: =IF(Factures[[#This Row],[somme]]=Factures[[#This Row],[Facturation totale]],"Dossier Clos","En cours") -> Dossier Clos
A12: Groupe C | B12: Remboursement frais | C12: Social | E12: =IF(Factures[[#This Row],[somme]]=Factures[[#This Row],[Facturation totale]],"Dossier Clos","En cours") -> Dossier Clos
A13: Groupe C | B13: Demi-journées janvier février 2017 | C13: Social | E13: =IF(Factures[[#This Row],[somme]]=Factures[[#This Row],[Facturation totale]],"Dossier Clos","En cours") -> Dossier Clos
A14: Groupe C | B14: Capital c/MORINA | C14: Social | E14: =IF(Factures[[#This Row],[somme]]=Factures[[#This Row],[Facturation totale]],"Dossier Clos","En cours") -> En cours
A15: Groupe C | B15: capital c/C6 | C15: Social | E15: =IF(Factures[[#This Row],[somme]]=Factures[[#This Row],[Facturation totale]],"Dossier Clos","En cours") -> Dossier Clos
A16: Groupe C | B16: Postulation | C16: Social | E16: =IF(Factures[[#This Row],[somme]]=Factures[[#This Row],[Facturation totale]],"Dossier Clos","En cours") -> Dossier Clos
A17: Groupe C | B17: Demi-journées mars avril 2017 | C17: Social | E17: =IF(Factures[[#This Row],[somme]]=Factures[[#This Row],[Facturation totale]],"Dossier Clos","En cours") -> Dossier Clos
A18: cdh | B18: Demi-journées mai juin 2017 | C18: Social | E18: =IF(Factures[[#This Row],[somme]]=Factures[[#This Row],[Facturation totale]],"Dossier Clos","En cours") -> En cours
C19: Social | E19: =IF(Factures[[#This Row],[somme]]=Factures[[#This Row],[Facturation totale]],"Dossier Clos","En cours") -> Dossier Clos
C20: Social | E20: =IF(Factures[[#This Row],[somme]]=Factures[[#This Row],[Facturation totale]],"Dossier Clos","En cours") -> Dossier Clos
E21: =IF(Factures[[#This Row],[somme]]=Factures[[#This Row],[Facturation totale]],"Dossier Clos","En cours") -> Dossier Clos
E22: =IF(Factures[[#This Row],[somme]]=Factures[[#This Row],[Facturation totale]],"Dossier Clos","En cours") -> Dossier Clos
E23: =IF(Factures[[#This Row],[somme]]=Factures[[#This Row],[Facturation totale]],"Dossier Clos","En cours") -> Dossier Clos
E24: =IF(Factures[[#This Row],[somme]]=Factures[[#This Row],[Facturation totale]],"Dossier Clos","En cours") -> Dossier Clos
E25: =IF(Factures[[#This Row],[somme]]=Factures[[#This Row],[Facturation totale]],"Dossier Clos","En cours") -> Dossier Clos

Sheet Facturation
F1: Facture 1 | L1: Facture 2 | R1: Facture 3 | X1: Facture 4
A2: Nom | B2: Dossier | C2: Etat de la procédure | D2: Modalités factu | E2: Facturation totale | F2: Montant 1 | G2: N ° Facture 1 | H2: Date d'émission 1 | I2: Date de paiement 1 | J2: Restant dû 1 | K2: Etat1 | L2: Montant 2 | M2: N° Facture 2 | N2: Date d'émission 2 | O2: Date de paiement 2 | P2: Restant dû 2 | Q2: Etat2 | R2: Montant 3 | S2: N° Facture 3 | T2: Date d'émission 3 | U2: Date de paiement 3 | V2: Montant dû 3 | W2: Etat 3 | X2: Montant 4 | Y2: N° Facture | Z2: Date d'émission 4 | AA2: Date de paiement 4 | AB2: Montant dû 4 | AC2: Etat 4 | AD2: somme | AI2: Numérote clients | AL2: Liste clients
A3: =IF(ISERROR(Dossier[[#This Row],[NOM]]),"",Dossier[[#This Row],[NOM]]) -> balot | B3: =Dossier[[#This Row],[Nom du dossier]] -> c/ d1 | C3: =#REF! ->  | D3: =#REF! ->  | E3: =Factures[[#This Row],[Montant 1]]+Factures[[#This Row],[Montant 2]]+Factures[[#This Row],[Montant 3]]+Factures[[#This Row],[Montant 4]] -> 1253.2 | F3: 853.2 | G3: 17-8-2 | H3: 2017-08-28 | I3: 2017-10-23 | J3: =IF(Factures[[#This Row],[Date de paiement 1]]<>"",Factures[[#This Row],[Facturation totale]]-Factures[[#This Row],[Montant 1]],Factures[[#This Row],[Facturation totale]]) -> 400 | K3: =IF(Factures[[#This Row],[Date d''émission 1]]="","A FACTURER",IF(Factures[[#This Row],[Date de paiement 1]]="","En attente de paiement", "Facture close")) -> Facture close | L3: 400 | M3: 17-8-4 | N3: 2017-08-31 | O3: 2017-10-23 | P3: =IF(Factures[[#This Row],[Date de paiement 2]]="",Factures[[#This Row],[Restant dû 1]],Factures[[#This Row],[Restant dû 1]]-Factures[[#This Row],[Montant 2]]) -> 0 | Q3: =IF(AND(Factures[[#This Row],[Restant dû 2]]<>Factures[[#This Row],[Montant 2]],Factures[[#This Row],[Date de paiement 2]]<>""),"facture close",IF(AND(Factures[[#This Row],[Date d''émission 2]]<>"",Factures[[#This Row],[Date de paiement 2]]=""),"en attente de paiement",IF(Factures[[#This Row],[Montant 2]]<>"","A FACTURER",""))) -> facture close | V3: =IF(Factures[[#This Row],[Date de paiement 3]]="",Factures[[#This Row],[Restant dû 2]],Factures[[#This Row],[Restant dû 2]]-Factures[[#This Row],[Montant 3]]) -> 0 | W3: =IF(AND([Montant dû 3]<>Factures[[#This Row],[Montant 3]],Factures[[#This Row],[Date de paiement 3]]<>""),"facture close",IF(AND(Factures[[#This Row],[Date d''émission 3]]<>"",Factures[[#This Row],[Date de paiement 4]]=""),"en attente de paiement",IF(Factures[[#This Row],[Montant 3]]<>"","A FACTURER",""))) ->  | AB3: =IF(Factures[[#This Row],[Date de paiement 4]]="",Factures[[#This Row],[Montant dû 3]],Factures[[#This Row],[Montant dû 3]]-Factures[[#This Row],[Montant 4]]) -> 0 | AC3: =IF(AND([Montant dû 4]<>Factures[[#This Row],[Montant 4]],Factures[[#This Row],[Date de paiement 4]]<>""),"facture close",IF(AND(Factures[[#This Row],[Date d''émission 4]]<>"",Factures[[#This Row],[Date de paiement 4]]=""),"en attente de paiement",IF(Factures[[#This Row],[Montant 4]]<>"","A FACTURER",""))) ->  | AD3: =Factures[[#This Row],[Montant dû 4]]+Factures[[#This Row],[Montant 4]]+Factures[[#This Row],[Montant 3]]+Factures[[#This Row],[Montant 2]]+Factures[[#This Row],[Montant 1]]+Factures[[#This Row],[Restant dû 2]] -> 1253.2 | AI3: =IF(A3="","",IF(COUNTIF(A$3:A3,A3)=1,MAX(AI$2:AI2)+1,"")) -> 1 | AK3: 1 | AL3: =IFERROR(INDEX(A:A,MATCH(AK3,AI:AI,0)),"") -> balot | AM3: La colonne A est triée par ordre alphabétique
A4: =IF(ISERROR(Dossier[[#This Row],[NOM]]),"",Dossier[[#This Row],[NOM]]) -> cdh | B4: =Dossier[[#This Row],[Nom du dossier]] -> Cdh c/ annuaie | C4: =#REF! ->  | D4: =#REF! ->  | E4: =Factures[[#This Row],[Montant 1]]+Factures[[#This Row],[Montant 2]]+Factures[[#This Row],[Montant 3]]+Factures[[#This Row],[Montant 4]] -> 1750 | F4: 1750 | G4: 18-3-1 | H4: 2018-03-06 | J4: =IF(Factures[[#This Row],[Date de paiement 1]]<>"",Factures[[#This Row],[Facturation totale]]-Factures[[#This Row],[Montant 1]],Factures[[#This Row],[Facturation totale]]) -> 1750 | K4: =IF(Factures[[#This Row],[Date d''émission 1]]="","A FACTURER",IF(Factures[[#This Row],[Date de paiement 1]]="","En attente de paiement", "Facture close")) -> En attente de paiement | P4: =IF(Factures[[#This Row],[Date de paiement 2]]="",Factures[[#This Row],[Restant dû 1]],Factures[[#This Row],[Restant dû 1]]-Factures[[#This Row],[Montant 2]]) -> 1750 | Q4: =IF(AND(Factures[[#This Row],[Restant dû 2]]<>Factures[[#This Row],[Montant 2]],Factures[[#This Row],[Date de paiement 2]]<>""),"facture close",IF(AND(Factures[[#This Row],[Date d''émission 2]]<>"",Factures[[#This Row],[Date de paiement 2]]=""),"en attente de paiement",IF(Factures[[#This Row],[Montant 2]]<>"","A FACTURER",""))) ->  | V4: =IF(Factures[[#This Row],[Date de paiement 3]]="",Factures[[#This Row],[Restant dû 2]],Factures[[#This Row],[Restant dû 2]]-Factures[[#This Row],[Montant 3]]) -> 1750 | W4: =IF(AND([Montant dû 3]<>Factures[[#This Row],[Montant 3]],Factures[[#This Row],[Date de paiement 3]]<>""),"facture close",IF(AND(Factures[[#This Row],[Date d''émission 3]]<>"",Factures[[#This Row],[Date de paiement 4]]=""),"en attente de paiement",IF(Factures[[#This Row],[Montant 3]]<>"","A FACTURER",""))) ->  | AB4: =IF(Factures[[#This Row],[Date de paiement 4]]="",Factures[[#This Row],[Montant dû 3]],Factures[[#This Row],[Montant dû 3]]-Factures[[#This Row],[Montant 4]]) -> 1750 | AC4: =IF(AND([Montant dû 4]<>Factures[[#This Row],[Montant 4]],Factures[[#This Row],[Date de paiement 4]]<>""),"facture close",IF(AND(Factures[[#This Row],[Date d''émission 4]]<>"",Factures[[#This Row],[Date de paiement 4]]=""),"en attente de paiement",IF(Factures[[#This Row],[Montant 4]]<>"","A FACTURER",""))) ->  | AD4: =Factures[[#This Row],[Montant dû 4]]+Factures[[#This Row],[Montant 4]]+Factures[[#This Row],[Montant 3]]+Factures[[#This Row],[Montant 2]]+Factures[[#This Row],[Montant 1]]+Factures[[#This Row],[Restant dû 2]] -> 5250 | AI4: =IF(A4="","",IF(COUNTIF(A$3:A4,A4)=1,MAX(AI$2:AI3)+1,"")) -> 2 | AK4: 2 | AL4: =IFERROR(INDEX(A:A,MATCH(AK4,AI:AI,0)),"") -> cdh
A5: =IF(ISERROR(Dossier[[#This Row],[NOM]]),"",Dossier[[#This Row],[NOM]]) -> cdh | B5: =Dossier[[#This Row],[Nom du dossier]] -> c/ Pierre | C5: =#REF! ->  | D5: =#REF! ->  | E5: =Factures[[#This Row],[Montant 1]]+Factures[[#This Row],[Montant 2]]+Factures[[#This Row],[Montant 3]]+Factures[[#This Row],[Montant 4]] -> 250 | F5: 250 | G5: 17-2-7 | H5: 2017-02-22 | I5: 2017-03-21 | J5: =IF(Factures[[#This Row],[Date de paiement 1]]<>"",Factures[[#This Row],[Facturation totale]]-Factures[[#This Row],[Montant 1]],Factures[[#This Row],[Facturation totale]]) -> 0 | K5: =IF(Factures[[#This Row],[Date d''émission 1]]="","A FACTURER",IF(Factures[[#This Row],[Date de paiement 1]]="","En attente de paiement", "Facture close")) -> Facture close | P5: =IF(Factures[[#This Row],[Date de paiement 2]]="",Factures[[#This Row],[Restant dû 1]],Factures[[#This Row],[Restant dû 1]]-Factures[[#This Row],[Montant 2]]) -> 0 | Q5: =IF(AND(Factures[[#This Row],[Restant dû 2]]<>Factures[[#This Row],[Montant 2]],Factures[[#This Row],[Date de paiement 2]]<>""),"facture close",IF(AND(Factures[[#This Row],[Date d''émission 2]]<>"",Factures[[#This Row],[Date de paiement 2]]=""),"en attente de paiement",IF(Factures[[#This Row],[Montant 2]]<>"","A FACTURER",""))) ->  | V5: =IF(Factures[[#This Row],[Date de paiement 3]]="",Factures[[#This Row],[Restant dû 2]],Factures[[#This Row],[Restant dû 2]]-Factures[[#This Row],[Montant 3]]) -> 0 | W5: =IF(AND([Montant dû 3]<>Factures[[#This Row],[Montant 3]],Factures[[#This Row],[Date de paiement 3]]<>""),"facture close",IF(AND(Factures[[#This Row],[Date d''émission 3]]<>"",Factures[[#This Row],[Date de paiement 4]]=""),"en attente de paiement",IF(Factures[[#This Row],[Montant 3]]<>"","A FACTURER",""))) ->  | AB5: =IF(Factures[[#This Row],[Date de paiement 4]]="",Factures[[#This Row],[Montant dû 3]],Factures[[#This Row],[Montant dû 3]]-Factures[[#This Row],[Montant 4]]) -> 0 | AC5: =IF(AND([Montant dû 4]<>Factures[[#This Row],[Montant 4]],Factures[[#This Row],[Date de paiement 4]]<>""),"facture close",IF(AND(Factures[[#This Row],[Date d''émission 4]]<>"",Factures[[#This Row],[Date de paiement 4]]=""),"en attente de paiement",IF(Factures[[#This Row],[Montant 4]]<>"","A FACTURER",""))) ->  | AD5: =Factures[[#This Row],[Montant dû 4]]+Factures[[#This Row],[Montant 4]]+Factures[[#This Row],[Montant 3]]+Factures[[#This Row],[Montant 2]]+Factures[[#This Row],[Montant 1]]+Factures[[#This Row],[Restant dû 2]] -> 250 | AI5: =IF(A5="","",IF(COUNTIF(A$3:A5,A5)=1,MAX(AI$2:AI4)+1,"")) ->  | AK5: 3 | AL5: cote machin | AM5: Liste dynamique qui s'adapte en longueur à la liste de noms
A6: =IF(ISERROR(Dossier[[#This Row],[NOM]]),"",Dossier[[#This Row],[NOM]]) -> cdh | B6: =Dossier[[#This Row],[Nom du dossier]] -> c/sosie | C6: =#REF! ->  | D6: =#REF! ->  | E6: =Factures[[#This Row],[Montant 1]]+Factures[[#This Row],[Montant 2]]+Factures[[#This Row],[Montant 3]]+Factures[[#This Row],[Montant 4]] -> 6000 | F6: 3000 | G6: 17-05-07 | H6: 2017-05-15 | I6: 2017-05-30 | J6: =IF(Factures[[#This Row],[Date de paiement 1]]<>"",Factures[[#This Row],[Facturation totale]]-Factures[[#This Row],[Montant 1]],Factures[[#This Row],[Facturation totale]]) -> 3000 | K6: =IF(Factures[[#This Row],[Date d''émission 1]]="","A FACTURER",IF(Factures[[#This Row],[Date de paiement 1]]="","En attente de paiement", "Facture close")) -> Facture close | L6: 3000 | P6: =IF(Factures[[#This Row],[Date de paiement 2]]="",Factures[[#This Row],[Restant dû 1]],Factures[[#This Row],[Restant dû 1]]-Factures[[#This Row],[Montant 2]]) -> 3000 | Q6: =IF(AND(Factures[[#This Row],[Restant dû 2]]<>Factures[[#This Row],[Montant 2]],Factures[[#This Row],[Date de paiement 2]]<>""),"facture close",IF(AND(Factures[[#This Row],[Date d''émission 2]]<>"",Factures[[#This Row],[Date de paiement 2]]=""),"en attente de paiement",IF(Factures[[#This Row],[Montant 2]]<>"","A FACTURER",""))) -> A FACTURER | V6: =IF(Factures[[#This Row],[Date de paiement 3]]="",Factures[[#This Row],[Restant dû 2]],Factures[[#This Row],[Restant dû 2]]-Factures[[#This Row],[Montant 3]]) -> 3000 | W6: =IF(AND([Montant dû 3]<>Factures[[#This Row],[Montant 3]],Factures[[#This Row],[Date de paiement 3]]<>""),"facture close",IF(AND(Factures[[#This Row],[Date d''émission 3]]<>"",Factures[[#This Row],[Date de paiement 4]]=""),"en attente de paiement",IF(Factures[[#This Row],[Montant 3]]<>"","A FACTURER",""))) ->  | AB6: =IF(Factures[[#This Row],[Date de paiement 4]]="",Factures[[#This Row],[Montant dû 3]],Factures[[#This Row],[Montant dû 3]]-Factures[[#This Row],[Montant 4]]) -> 3000 | AC6: =IF(AND([Montant dû 4]<>Factures[[#This Row],[Montant 4]],Factures[[#This Row],[Date de paiement 4]]<>""),"facture close",IF(AND(Factures[[#This Row],[Date d''émission 4]]<>"",Factures[[#This Row],[Date de paiement 4]]=""),"en attente de paiement",IF(Factures[[#This Row],[Montant 4]]<>"","A FACTURER",""))) ->  | AD6: =Factures[[#This Row],[Montant dû 4]]+Factures[[#This Row],[Montant 4]]+Factures[[#This Row],[Montant 3]]+Factures[[#This Row],[Montant 2]]+Factures[[#This Row],[Montant 1]]+Factures[[#This Row],[Restant dû 2]] -> 12000 | AI6: =IF(A6="","",IF(COUNTIF(A$3:A6,A6)=1,MAX(AI$2:AI5)+1,"")) ->  | AK6: 4 | AL6: dora | AM6: nommée clients (voir Gestionnaire de noms)
A7: =IF(ISERROR(Dossier[[#This Row],[NOM]]),"",Dossier[[#This Row],[NOM]]) -> cote machin | B7: =Dossier[[#This Row],[Nom du dossier]] -> Consultation Coté c/ Taurus | C7: =#REF! ->  | D7: =#REF! ->  | E7: =Factures[[#This Row],[Montant 1]]+Factures[[#This Row],[Montant 2]]+Factures[[#This Row],[Montant 3]]+Factures[[#This Row],[Montant 4]] -> 500 | F7: 500 | G7: 17-2-9 | H7: 2017-03-01 | I7: 2017-03-21 | J7: =IF(Factures[[#This Row],[Date de paiement 1]]<>"",Factures[[#This Row],[Facturation totale]]-Factures[[#This Row],[Montant 1]],Factures[[#This Row],[Facturation totale]]) -> 0 | K7: =IF(Factures[[#This Row],[Date d''émission 1]]="","A FACTURER",IF(Factures[[#This Row],[Date de paiement 1]]="","En attente de paiement", "Facture close")) -> Facture close | P7: =IF(Factures[[#This Row],[Date de paiement 2]]="",Factures[[#This Row],[Restant dû 1]],Factures[[#This Row],[Restant dû 1]]-Factures[[#This Row],[Montant 2]]) -> 0 | Q7: =IF(AND(Factures[[#This Row],[Restant dû 2]]<>Factures[[#This Row],[Montant 2]],Factures[[#This Row],[Date de paiement 2]]<>""),"facture close",IF(AND(Factures[[#This Row],[Date d''émission 2]]<>"",Factures[[#This Row],[Date de paiement 2]]=""),"en attente de paiement",IF(Factures[[#This Row],[Montant 2]]<>"","A FACTURER",""))) ->  | V7: =IF(Factures[[#This Row],[Date de paiement 3]]="",Factures[[#This Row],[Restant dû 2]],Factures[[#This Row],[Restant dû 2]]-Factures[[#This Row],[Montant 3]]) -> 0 | W7: =IF(AND([Montant dû 3]<>Factures[[#This Row],[Montant 3]],Factures[[#This Row],[Date de paiement 3]]<>""),"facture close",IF(AND(Factures[[#This Row],[Date d''émission 3]]<>"",Factures[[#This Row],[Date de paiement 4]]=""),"en attente de paiement",IF(Factures[[#This Row],[Montant 3]]<>"","A FACTURER",""))) ->  | AB7: =IF(Factures[[#This Row],[Date de paiement 4]]="",Factures[[#This Row],[Montant dû 3]],Factures[[#This Row],[Montant dû 3]]-Factures[[#This Row],[Montant 4]]) -> 0 | AC7: =IF(AND([Montant dû 4]<>Factures[[#This Row],[Montant 4]],Factures[[#This Row],[Date de paiement 4]]<>""),"facture close",IF(AND(Factures[[#This Row],[Date d''émission 4]]<>"",Factures[[#This Row],[Date de paiement 4]]=""),"en attente de paiement",IF(Factures[[#This Row],[Montant 4]]<>"","A FACTURER",""))) ->  | AD7: =Factures[[#This Row],[Montant dû 4]]+Factures[[#This Row],[Montant 4]]+Factures[[#This Row],[Montant 3]]+Factures[[#This Row],[Montant 2]]+Factures[[#This Row],[Montant 1]]+Factures[[#This Row],[Restant dû 2]] -> 500 | AI7: =IF(A7="","",IF(COUNTIF(A$3:A7,A7)=1,MAX(AI$2:AI6)+1,"")) -> 3 | AK7: 5 | AL7: =IFERROR(INDEX(A:A,MATCH(AK7,AI:AI,0)),"") -> lesvins d alsace | AM7: avec pour formule pour la référence :
A8: =IF(ISERROR(Dossier[[#This Row],[NOM]]),"",Dossier[[#This Row],[NOM]]) -> dora | B8: =Dossier[[#This Row],[Nom du dossier]] -> dora licenciement | C8: =#REF! ->  | D8: =#REF! ->  | E8: =Factures[[#This Row],[Montant 1]]+Factures[[#This Row],[Montant 2]]+Factures[[#This Row],[Montant 3]]+Factures[[#This Row],[Montant 4]] -> 1293.1 | F8: 432.4 | G8: 17-05-13 | H8: 2017-05-31 | I8: 2017-07-07 | J8: =IF(Factures[[#This Row],[Date de paiement 1]]<>"",Factures[[#This Row],[Facturation totale]]-Factures[[#This Row],[Montant 1]],Factures[[#This Row],[Facturation totale]]) -> 860.7 | K8: =IF(Factures[[#This Row],[Date d''émission 1]]="","A FACTURER",IF(Factures[[#This Row],[Date de paiement 1]]="","En attente de paiement", "Facture close")) -> Facture close | L8: 428.9 | M8: 17-6-3 | N8: 2017-06-20 | O8: 2017-07-07 | P8: =IF(Factures[[#This Row],[Date de paiement 2]]="",Factures[[#This Row],[Restant dû 1]],Factures[[#This Row],[Restant dû 1]]-Factures[[#This Row],[Montant 2]]) -> 431.8 | Q8: =IF(AND(Factures[[#This Row],[Restant dû 2]]<>Factures[[#This Row],[Montant 2]],Factures[[#This Row],[Date de paiement 2]]<>""),"facture close",IF(AND(Factures[[#This Row],[Date d''émission 2]]<>"",Factures[[#This Row],[Date de paiement 2]]=""),"en attente de paiement",IF(Factures[[#This Row],[Montant 2]]<>"","A FACTURER",""))) -> facture close | R8: 431.8 | S8: 17-6-6 | T8: 2017-06-30 | U8: 2017-07-07 | V8: =IF(Factures[[#This Row],[Date de paiement 3]]="",Factures[[#This Row],[Restant dû 2]],Factures[[#This Row],[Restant dû 2]]-Factures[[#This Row],[Montant 3]]) -> -5.684341886e-14 | W8: =IF(AND([Montant dû 3]<>Factures[[#This Row],[Montant 3]],Factures[[#This Row],[Date de paiement 3]]<>""),"facture close",IF(AND(Factures[[#This Row],[Date d''émission 3]]<>"",Factures[[#This Row],[Date de paiement 4]]=""),"en attente de paiement",IF(Factures[[#This Row],[Montant 3]]<>"","A FACTURER",""))) -> facture close | AB8: =IF(Factures[[#This Row],[Date de paiement 4]]="",Factures[[#This Row],[Montant dû 3]],Factures[[#This Row],[Montant dû 3]]-Factures[[#This Row],[Montant 4]]) -> -5.684341886e-14 | AC8: =IF(AND([Montant dû 4]<>Factures[[#This Row],[Montant 4]],Factures[[#This Row],[Date de paiement 4]]<>""),"facture close",IF(AND(Factures[[#This Row],[Date d''émission 4]]<>"",Factures[[#This Row],[Date de paiement 4]]=""),"en attente de paiement",IF(Factures[[#This Row],[Montant 4]]<>"","A FACTURER",""))) ->  | AD8: =Factures[[#This Row],[Montant dû 4]]+Factures[[#This Row],[Montant 4]]+Factures[[#This Row],[Montant 3]]+Factures[[#This Row],[Montant 2]]+Factures[[#This Row],[Montant 1]]+Factures[[#This Row],[Restant dû 2]] -> 1724.9 | AI8: =IF(A8="","",IF(COUNTIF(A$3:A8,A8)=1,MAX(AI$2:AI7)+1,"")) -> 4 | AK8: 6 | AL8: dotera | AM8: =DECALER(Facturation!$AL$3;;;NB.SI(Facturation!$AL:$AL;">=a")-1)
A9: =IF(ISERROR(Dossier[[#This Row],[NOM]]),"",Dossier[[#This Row],[NOM]]) -> lesvins d alsace | B9: =Dossier[[#This Row],[Nom du dossier]] -> Levée de fonds | C9: =#REF! ->  | D9: =#REF! ->  | E9: =Factures[[#This Row],[Montant 1]]+Factures[[#This Row],[Montant 2]]+Factures[[#This Row],[Montant 3]]+Factures[[#This Row],[Montant 4]] -> 600 | F9: 300 | G9: 17-2-8 | H9: 2017-02-24 | I9: 2017-03-01 | J9: =IF(Factures[[#This Row],[Date de paiement 1]]<>"",Factures[[#This Row],[Facturation totale]]-Factures[[#This Row],[Montant 1]],Factures[[#This Row],[Facturation totale]]) -> 300 | K9: =IF(Factures[[#This Row],[Date d''émission 1]]="","A FACTURER",IF(Factures[[#This Row],[Date de paiement 1]]="","En attente de paiement", "Facture close")) -> Facture close | L9: 300 | M9: 17-3-6 | N9: 2017-03-22 | O9: 2017-03-30 | P9: =IF(Factures[[#This Row],[Date de paiement 2]]="",Factures[[#This Row],[Restant dû 1]],Factures[[#This Row],[Restant dû 1]]-Factures[[#This Row],[Montant 2]]) -> 0 | Q9: =IF(AND(Factures[[#This Row],[Restant dû 2]]<>Factures[[#This Row],[Montant 2]],Factures[[#This Row],[Date de paiement 2]]<>""),"facture close",IF(AND(Factures[[#This Row],[Date d''émission 2]]<>"",Factures[[#This Row],[Date de paiement 2]]=""),"en attente de paiement",IF(Factures[[#This Row],[Montant 2]]<>"","A FACTURER",""))) -> facture close | V9: =IF(Factures[[#This Row],[Date de paiement 3]]="",Factures[[#This Row],[Restant dû 2]],Factures[[#This Row],[Restant dû 2]]-Factures[[#This Row],[Montant 3]]) -> 0 | W9: =IF(AND([Montant dû 3]<>Factures[[#This Row],[Montant 3]],Factures[[#This Row],[Date de paiement 3]]<>""),"facture close",IF(AND(Factures[[#This Row],[Date d''émission 3]]<>"",Factures[[#This Row],[Date de paiement 4]]=""),"en attente de paiement",IF(Factures[[#This Row],[Montant 3]]<>"","A FACTURER",""))) ->  | AB9: =IF(Factures[[#This Row],[Date de paiement 4]]="",Factures[[#This Row],[Montant dû 3]],Factures[[#This Row],[Montant dû 3]]-Factures[[#This Row],[Montant 4]]) -> 0 | AC9: =IF(AND([Montant dû 4]<>Factures[[#This Row],[Montant 4]],Factures[[#This Row],[Date de paiement 4]]<>""),"facture close",IF(AND(Factures[[#This Row],[Date d''émission 4]]<>"",Factures[[#This Row],[Date de paiement 4]]=""),"en attente de paiement",IF(Factures[[#This Row],[Montant 4]]<>"","A FACTURER",""))) ->  | AD9: =Factures[[#This Row],[Montant dû 4]]+Factures[[#This Row],[Montant 4]]+Factures[[#This Row],[Montant 3]]+Factures[[#This Row],[Montant 2]]+Factures[[#This Row],[Montant 1]]+Factures[[#This Row],[Restant dû 2]] -> 600 | AI9: =IF(A9="","",IF(COUNTIF(A$3:A9,A9)=1,MAX(AI$2:AI8)+1,"")) -> 5 | AK9: 7 | AL9: desire
A10: =IF(ISERROR(Dossier[[#This Row],[NOM]]),"",Dossier[[#This Row],[NOM]]) -> dotera | B10: =Dossier[[#This Row],[Nom du dossier]] -> c/ L2 | C10: =#REF! ->  | D10: =#REF! ->  | E10: =Factures[[#This Row],[Montant 1]]+Factures[[#This Row],[Montant 2]]+Factures[[#This Row],[Montant 3]]+Factures[[#This Row],[Montant 4]] -> 21680 | F10: 2500 | G10: 16 - 33 | H10: 2016-12-06 | I10: 2017-03-29 | J10: =IF(Factures[[#This Row],[Date de paiement 1]]<>"",Factures[[#This Row],[Facturation totale]]-Factures[[#This Row],[Montant 1]],Factures[[#This Row],[Facturation totale]]) -> 19180 | K10: =IF(Factures[[#This Row],[Date d''émission 1]]="","A FACTURER",IF(Factures[[#This Row],[Date de paiement 1]]="","En attente de paiement", "Facture close")) -> Facture close | L10: 2000 | M10: 17-05-11 | N10: 2017-05-21 | O10: 2017-05-30 | P10: =IF(Factures[[#This Row],[Date de paiement 2]]="",Factures[[#This Row],[Restant dû 1]],Factures[[#This Row],[Restant dû 1]]-Factures[[#This Row],[Montant 2]]) -> 17180 | Q10: =IF(AND(Factures[[#This Row],[Restant dû 2]]<>Factures[[#This Row],[Montant 2]],Factures[[#This Row],[Date de paiement 2]]<>""),"facture close",IF(AND(Factures[[#This Row],[Date d''émission 2]]<>"",Factures[[#This Row],[Date de paiement 2]]=""),"en attente de paiement",IF(Factures[[#This Row],[Montant 2]]<>"","A FACTURER",""))) -> facture close | R10: 17180 | S10: 17-12-3 et 11111 | T10: 2017-12-26 | U10: 2018-01-15 | V10: =IF(Factures[[#This Row],[Date de paiement 3]]="",Factures[[#This Row],[Restant dû 2]],Factures[[#This Row],[Restant dû 2]]-Factures[[#This Row],[Montant 3]]) -> 0 | W10: =IF(AND([Montant dû 3]<>Factures[[#This Row],[Montant 3]],Factures[[#This Row],[Date de paiement 3]]<>""),"facture close",IF(AND(Factures[[#This Row],[Date d''émission 3]]<>"",Factures[[#This Row],[Date de paiement 4]]=""),"en attente de paiement",IF(Factures[[#This Row],[Montant 3]]<>"","A FACTURER",""))) -> facture close | AB10: =IF(Factures[[#This Row],[Date de paiement 4]]="",Factures[[#This Row],[Montant dû 3]],Factures[[#This Row],[Montant dû 3]]-Factures[[#This Row],[Montant 4]]) -> 0 | AC10: =IF(AND([Montant dû 4]<>Factures[[#This Row],[Montant 4]],Factures[[#This Row],[Date de paiement 4]]<>""),"facture close",IF(AND(Factures[[#This Row],[Date d''émission 4]]<>"",Factures[[#This Row],[Date de paiement 4]]=""),"en attente de paiement",IF(Factures[[#This Row],[Montant 4]]<>"","A FACTURER",""))) ->  | AD10: =Factures[[#This Row],[Montant dû 4]]+Factures[[#This Row],[Montant 4]]+Factures[[#This Row],[Montant 3]]+Factures[[#This Row],[Montant 2]]+Factures[[#This Row],[Montant 1]]+Factures[[#This Row],[Restant dû 2]] -> 38860 | AI10: =IF(A10="","",IF(COUNTIF(A$3:A10,A10)=1,MAX(AI$2:AI9)+1,"")) -> 6 | AK10: 8 | AL10: Groupe C | AM10: Cette liste va servir à la liste de choix de Recap
A11: =IF(ISERROR(Dossier[[#This Row],[NOM]]),"",Dossier[[#This Row],[NOM]]) -> desire | B11: =Dossier[[#This Row],[Nom du dossier]] -> c/ veolia | C11: =#REF! ->  | D11: =#REF! ->  | E11: =Factures[[#This Row],[Montant 1]]+Factures[[#This Row],[Montant 2]]+Factures[[#This Row],[Montant 3]]+Factures[[#This Row],[Montant 4]] -> 12182.17 | F11: 1000 | G11: 17-2-6 | H11: 2017-02-22 | I11: 2017-05-30 | J11: =IF(Factures[[#This Row],[Date de paiement 1]]<>"",Factures[[#This Row],[Facturation totale]]-Factures[[#This Row],[Montant 1]],Factures[[#This Row],[Facturation totale]]) -> 11182.17 | K11: =IF(Factures[[#This Row],[Date d''émission 1]]="","A FACTURER",IF(Factures[[#This Row],[Date de paiement 1]]="","En attente de paiement", "Facture close")) -> Facture close | L11: 11182.17 | M11: 111111 | N11: 2017-01-01 | O11: 2017-11-02 | P11: =IF(Factures[[#This Row],[Date de paiement 2]]="",Factures[[#This Row],[Restant dû 1]],Factures[[#This Row],[Restant dû 1]]-Factures[[#This Row],[Montant 2]]) -> 0 | Q11: =IF(AND(Factures[[#This Row],[Restant dû 2]]<>Factures[[#This Row],[Montant 2]],Factures[[#This Row],[Date de paiement 2]]<>""),"facture close",IF(AND(Factures[[#This Row],[Date d''émission 2]]<>"",Factures[[#This Row],[Date de paiement 2]]=""),"en attente de paiement",IF(Factures[[#This Row],[Montant 2]]<>"","A FACTURER",""))) -> facture close | V11: =IF(Factures[[#This Row],[Date de paiement 3]]="",Factures[[#This Row],[Restant dû 2]],Factures[[#This Row],[Restant dû 2]]-Factures[[#This Row],[Montant 3]]) -> 0 | W11: =IF(AND([Montant dû 3]<>Factures[[#This Row],[Montant 3]],Factures[[#This Row],[Date de paiement 3]]<>""),"facture close",IF(AND(Factures[[#This Row],[Date d''émission 3]]<>"",Factures[[#This Row],[Date de paiement 4]]=""),"en attente de paiement",IF(Factures[[#This Row],[Montant 3]]<>"","A FACTURER",""))) ->  | AB11: =IF(Factures[[#This Row],[Date de paiement 4]]="",Factures[[#This Row],[Montant dû 3]],Factures[[#This Row],[Montant dû 3]]-Factures[[#This Row],[Montant 4]]) -> 0 | AC11: =IF(AND([Montant dû 4]<>Factures[[#This Row],[Montant 4]],Factures[[#This Row],[Date de paiement 4]]<>""),"facture close",IF(AND(Factures[[#This Row],[Date d''émission 4]]<>"",Factures[[#This Row],[Date de paiement 4]]=""),"en attente de paiement",IF(Factures[[#This Row],[Montant 4]]<>"","A FACTURER",""))) ->  | AD11: =Factures[[#This Row],[Montant dû 4]]+Factures[[#This Row],[Montant 4]]+Factures[[#This Row],[Montant 3]]+Factures[[#This Row],[Montant 2]]+Factures[[#This Row],[Montant 1]]+Factures[[#This Row],[Restant dû 2]] -> 12182.17 | AI11: =IF(A11="","",IF(COUNTIF(A$3:A11,A11)=1,MAX(AI$2:AI10)+1,"")) -> 7 | AK11: 9 | AL11: 0
A12: =IF(ISERROR(Dossier[[#This Row],[NOM]]),"",Dossier[[#This Row],[NOM]]) -> Groupe C | B12: =Dossier[[#This Row],[Nom du dossier]] -> Remboursement frais | C12: =#REF! ->  | D12: =#REF! ->  | E12: =Factures[[#This Row],[Montant 1]]+Factures[[#This Row],[Montant 2]]+Factures[[#This Row],[Montant 3]]+Factures[[#This Row],[Montant 4]] -> 2500 | F12: 2500 | G12: 17-03-04 | H12: 2017-03-21 | I12: 2017-03-02 | J12: =IF(Factures[[#This Row],[Date de paiement 1]]<>"",Factures[[#This Row],[Facturation totale]]-Factures[[#This Row],[Montant 1]],Factures[[#This Row],[Facturation totale]]) -> 0 | K12: =IF(Factures[[#This Row],[Date d''émission 1]]="","A FACTURER",IF(Factures[[#This Row],[Date de paiement 1]]="","En attente de paiement", "Facture close")) -> Facture close | P12: =IF(Factures[[#This Row],[Date de paiement 2]]="",Factures[[#This Row],[Restant dû 1]],Factures[[#This Row],[Restant dû 1]]-Factures[[#This Row],[Montant 2]]) -> 0 | Q12: =IF(AND(Factures[[#This Row],[Restant dû 2]]<>Factures[[#This Row],[Montant 2]],Factures[[#This Row],[Date de paiement 2]]<>""),"facture close",IF(AND(Factures[[#This Row],[Date d''émission 2]]<>"",Factures[[#This Row],[Date de paiement 2]]=""),"en attente de paiement",IF(Factures[[#This Row],[Montant 2]]<>"","A FACTURER",""))) ->  | V12: =IF(Factures[[#This Row],[Date de paiement 3]]="",Factures[[#This Row],[Restant dû 2]],Factures[[#This Row],[Restant dû 2]]-Factures[[#This Row],[Montant 3]]) -> 0 | W12: =IF(AND([Montant dû 3]<>Factures[[#This Row],[Montant 3]],Factures[[#This Row],[Date de paiement 3]]<>""),"facture close",IF(AND(Factures[[#This Row],[Date d''émission 3]]<>"",Factures[[#This Row],[Date de paiement 4]]=""),"en attente de paiement",IF(Factures[[#This Row],[Montant 3]]<>"","A FACTURER",""))) ->  | AB12: =IF(Factures[[#This Row],[Date de paiement 4]]="",Factures[[#This Row],[Montant dû 3]],Factures[[#This Row],[Montant dû 3]]-Factures[[#This Row],[Montant 4]]) -> 0 | AC12: =IF(AND([Montant dû 4]<>Factures[[#This Row],[Montant 4]],Factures[[#This Row],[Date de paiement 4]]<>""),"facture close",IF(AND(Factures[[#This Row],[Date d''émission 4]]<>"",Factures[[#This Row],[Date de paiement 4]]=""),"en attente de paiement",IF(Factures[[#This Row],[Montant 4]]<>"","A FACTURER",""))) ->  | AD12: =Factures[[#This Row],[Montant dû 4]]+Factures[[#This Row],[Montant 4]]+Factures[[#This Row],[Montant 3]]+Factures[[#This Row],[Montant 2]]+Factures[[#This Row],[Montant 1]]+Factures[[#This Row],[Restant dû 2]] -> 2500 | AI12: =IF(A12="","",IF(COUNTIF(A$3:A12,A12)=1,MAX(AI$2:AI11)+1,"")) -> 8 | AK12: 10
A13: =IF(ISERROR(Dossier[[#This Row],[NOM]]),"",Dossier[[#This Row],[NOM]]) -> Groupe C | B13: =Dossier[[#This Row],[Nom du dossier]] -> Demi-journées janvier février 2017 | C13: =#REF! ->  | D13: =#REF! ->  | E13: =Factures[[#This Row],[Montant 1]]+Factures[[#This Row],[Montant 2]]+Factures[[#This Row],[Montant 3]]+Factures[[#This Row],[Montant 4]] -> 58.7 | F13: 58.7 | G13: 17-1-7 | H13: 2017-01-24 | I13: 2017-05-09 | J13: =IF(Factures[[#This Row],[Date de paiement 1]]<>"",Factures[[#This Row],[Facturation totale]]-Factures[[#This Row],[Montant 1]],Factures[[#This Row],[Facturation totale]]) -> 0 | K13: =IF(Factures[[#This Row],[Date d''émission 1]]="","A FACTURER",IF(Factures[[#This Row],[Date de paiement 1]]="","En attente de paiement", "Facture close")) -> Facture close | P13: =IF(Factures[[#This Row],[Date de paiement 2]]="",Factures[[#This Row],[Restant dû 1]],Factures[[#This Row],[Restant dû 1]]-Factures[[#This Row],[Montant 2]]) -> 0 | Q13: =IF(AND(Factures[[#This Row],[Restant dû 2]]<>Factures[[#This Row],[Montant 2]],Factures[[#This Row],[Date de paiement 2]]<>""),"facture close",IF(AND(Factures[[#This Row],[Date d''émission 2]]<>"",Factures[[#This Row],[Date de paiement 2]]=""),"en attente de paiement",IF(Factures[[#This Row],[Montant 2]]<>"","A FACTURER",""))) ->  | V13: =IF(Factures[[#This Row],[Date de paiement 3]]="",Factures[[#This Row],[Restant dû 2]],Factures[[#This Row],[Restant dû 2]]-Factures[[#This Row],[Montant 3]]) -> 0 | W13: =IF(AND([Montant dû 3]<>Factures[[#This Row],[Montant 3]],Factures[[#This Row],[Date de paiement 3]]<>""),"facture close",IF(AND(Factures[[#This Row],[Date d''émission 3]]<>"",Factures[[#This Row],[Date de paiement 4]]=""),"en attente de paiement",IF(Factures[[#This Row],[Montant 3]]<>"","A FACTURER",""))) ->  | AB13: =IF(Factures[[#This Row],[Date de paiement 4]]="",Factures[[#This Row],[Montant dû 3]],Factures[[#This Row],[Montant dû 3]]-Factures[[#This Row],[Montant 4]]) -> 0 | AC13: =IF(AND([Montant dû 4]<>Factures[[#This Row],[Montant 4]],Factures[[#This Row],[Date de paiement 4]]<>""),"facture close",IF(AND(Factures[[#This Row],[Date d''émission 4]]<>"",Factures[[#This Row],[Date de paiement 4]]=""),"en attente de paiement",IF(Factures[[#This Row],[Montant 4]]<>"","A FACTURER",""))) ->  | AD13: =Factures[[#This Row],[Montant dû 4]]+Factures[[#This Row],[Montant 4]]+Factures[[#This Row],[Montant 3]]+Factures[[#This Row],[Montant 2]]+Factures[[#This Row],[Montant 1]]+Factures[[#This Row],[Restant dû 2]] -> 58.7 | AI13: =IF(A13="","",IF(COUNTIF(A$3:A13,A13)=1,MAX(AI$2:AI12)+1,"")) ->  | AK13: 11
A14: =IF(ISERROR(Dossier[[#This Row],[NOM]]),"",Dossier[[#This Row],[NOM]]) -> Groupe C | B14: =Dossier[[#This Row],[Nom du dossier]] -> Capital c/MORINA | C14: =#REF! ->  | D14: =#REF! ->  | E14: =Factures[[#This Row],[Montant 1]]+Factures[[#This Row],[Montant 2]]+Factures[[#This Row],[Montant 3]]+Factures[[#This Row],[Montant 4]] -> 1661.61 | F14: 800 | G14: 17-1-4 | H14: 2017-01-12 | I14: 2017-05-09 | J14: =IF(Factures[[#This Row],[Date de paiement 1]]<>"",Factures[[#This Row],[Facturation totale]]-Factures[[#This Row],[Montant 1]],Factures[[#This Row],[Facturation totale]]) -> 861.61 | K14: =IF(Factures[[#This Row],[Date d''émission 1]]="","A FACTURER",IF(Factures[[#This Row],[Date de paiement 1]]="","En attente de paiement", "Facture close")) -> Facture close | L14: 430.81 | M14: 17-2-1 | N14: 2017-02-09 | O14: 2017-05-23 | P14: =IF(Factures[[#This Row],[Date de paiement 2]]="",Factures[[#This Row],[Restant dû 1]],Factures[[#This Row],[Restant dû 1]]-Factures[[#This Row],[Montant 2]]) -> 430.8 | Q14: =IF(AND(Factures[[#This Row],[Restant dû 2]]<>Factures[[#This Row],[Montant 2]],Factures[[#This Row],[Date de paiement 2]]<>""),"facture close",IF(AND(Factures[[#This Row],[Date d''émission 2]]<>"",Factures[[#This Row],[Date de paiement 2]]=""),"en attente de paiement",IF(Factures[[#This Row],[Montant 2]]<>"","A FACTURER",""))) -> facture close | R14: 430.8 | S14: 17-2-4 | T14: 2017-02-22 | U14: 2017-05-23 | V14: =IF(Factures[[#This Row],[Date de paiement 3]]="",Factures[[#This Row],[Restant dû 2]],Factures[[#This Row],[Restant dû 2]]-Factures[[#This Row],[Montant 3]]) -> -1.136868377e-13 | W14: =IF(AND([Montant dû 3]<>Factures[[#This Row],[Montant 3]],Factures[[#This Row],[Date de paiement 3]]<>""),"facture close",IF(AND(Factures[[#This Row],[Date d''émission 3]]<>"",Factures[[#This Row],[Date de paiement 4]]=""),"en attente de paiement",IF(Factures[[#This Row],[Montant 3]]<>"","A FACTURER",""))) -> facture close | AB14: =IF(Factures[[#This Row],[Date de paiement 4]]="",Factures[[#This Row],[Montant dû 3]],Factures[[#This Row],[Montant dû 3]]-Factures[[#This Row],[Montant 4]]) -> -1.136868377e-13 | AC14: =IF(AND([Montant dû 4]<>Factures[[#This Row],[Montant 4]],Factures[[#This Row],[Date de paiement 4]]<>""),"facture close",IF(AND(Factures[[#This Row],[Date d''émission 4]]<>"",Factures[[#This Row],[Date de paiement 4]]=""),"en attente de paiement",IF(Factures[[#This Row],[Montant 4]]<>"","A FACTURER",""))) ->  | AD14: =Factures[[#This Row],[Montant dû 4]]+Factures[[#This Row],[Montant 4]]+Factures[[#This Row],[Montant 3]]+Factures[[#This Row],[Montant 2]]+Factures[[#This Row],[Montant 1]]+Factures[[#This Row],[Restant dû 2]] -> 2092.41 | AI14: =IF(A14="","",IF(COUNTIF(A$3:A14,A14)=1,MAX(AI$2:AI13)+1,"")) ->  | AK14: 12
A15: =IF(ISERROR(Dossier[[#This Row],[NOM]]),"",Dossier[[#This Row],[NOM]]) -> Groupe C | B15: =Dossier[[#This Row],[Nom du dossier]] -> capital c/C6 | C15: =#REF! ->  | D15: =#REF! ->  | E15: =Factures[[#This Row],[Montant 1]]+Factures[[#This Row],[Montant 2]]+Factures[[#This Row],[Montant 3]]+Factures[[#This Row],[Montant 4]] -> 2300 | F15: 2300 | G15: 17-1-3 | H15: 2017-01-24 | I15: 2017-03-15 | J15: =IF(Factures[[#This Row],[Date de paiement 1]]<>"",Factures[[#This Row],[Facturation totale]]-Factures[[#This Row],[Montant 1]],Factures[[#This Row],[Facturation totale]]) -> 0 | K15: =IF(Factures[[#This Row],[Date d''émission 1]]="","A FACTURER",IF(Factures[[#This Row],[Date de paiement 1]]="","En attente de paiement", "Facture close")) -> Facture close | P15: =IF(Factures[[#This Row],[Date de paiement 2]]="",Factures[[#This Row],[Restant dû 1]],Factures[[#This Row],[Restant dû 1]]-Factures[[#This Row],[Montant 2]]) -> 0 | Q15: =IF(AND(Factures[[#This Row],[Restant dû 2]]<>Factures[[#This Row],[Montant 2]],Factures[[#This Row],[Date de paiement 2]]<>""),"facture close",IF(AND(Factures[[#This Row],[Date d''émission 2]]<>"",Factures[[#This Row],[Date de paiement 2]]=""),"en attente de paiement",IF(Factures[[#This Row],[Montant 2]]<>"","A FACTURER",""))) ->  | V15: =IF(Factures[[#This Row],[Date de paiement 3]]="",Factures[[#This Row],[Restant dû 2]],Factures[[#This Row],[Restant dû 2]]-Factures[[#This Row],[Montant 3]]) -> 0 | W15: =IF(AND([Montant dû 3]<>Factures[[#This Row],[Montant 3]],Factures[[#This Row],[Date de paiement 3]]<>""),"facture close",IF(AND(Factures[[#This Row],[Date d''émission 3]]<>"",Factures[[#This Row],[Date de paiement 4]]=""),"en attente de paiement",IF(Factures[[#This Row],[Montant 3]]<>"","A FACTURER",""))) ->  | AB15: =IF(Factures[[#This Row],[Date de paiement 4]]="",Factures[[#This Row],[Montant dû 3]],Factures[[#This Row],[Montant dû 3]]-Factures[[#This Row],[Montant 4]]) -> 0 | AC15: =IF(AND([Montant dû 4]<>Factures[[#This Row],[Montant 4]],Factures[[#This Row],[Date de paiement 4]]<>""),"facture close",IF(AND(Factures[[#This Row],[Date d''émission 4]]<>"",Factures[[#This Row],[Date de paiement 4]]=""),"en attente de paiement",IF(Factures[[#This Row],[Montant 4]]<>"","A FACTURER",""))) ->  | AD15: =Factures[[#This Row],[Montant dû 4]]+Factures[[#This Row],[Montant 4]]+Factures[[#This Row],[Montant 3]]+Factures[[#This Row],[Montant 2]]+Factures[[#This Row],[Montant 1]]+Factures[[#This Row],[Restant dû 2]] -> 2300 | AI15: =IF(A15="","",IF(COUNTIF(A$3:A15,A15)=1,MAX(AI$2:AI14)+1,"")) ->  | AK15: 13
A16: =IF(ISERROR(Dossier[[#This Row],[NOM]]),"",Dossier[[#This Row],[NOM]]) -> Groupe C | B16: =Dossier[[#This Row],[Nom du dossier]] -> Postulation | C16: =#REF! ->  | D16: =#REF! ->  | E16: =Factures[[#This Row],[Montant 1]]+Factures[[#This Row],[Montant 2]]+Factures[[#This Row],[Montant 3]]+Factures[[#This Row],[Montant 4]] -> 2500 | F16: 2500 | G16: 17-1-2 | H16: 2017-01-24 | I16: 2017-05-09 | J16: =IF(Factures[[#This Row],[Date de paiement 1]]<>"",Factures[[#This Row],[Facturation totale]]-Factures[[#This Row],[Montant 1]],Factures[[#This Row],[Facturation totale]]) -> 0 | K16: =IF(Factures[[#This Row],[Date d''émission 1]]="","A FACTURER",IF(Factures[[#This Row],[Date de paiement 1]]="","En attente de paiement", "Facture close")) -> Facture close | P16: =IF(Factures[[#This Row],[Date de paiement 2]]="",Factures[[#This Row],[Restant dû 1]],Factures[[#This Row],[Restant dû 1]]-Factures[[#This Row],[Montant 2]]) -> 0 | Q16: =IF(AND(Factures[[#This Row],[Restant dû 2]]<>Factures[[#This Row],[Montant 2]],Factures[[#This Row],[Date de paiement 2]]<>""),"facture close",IF(AND(Factures[[#This Row],[Date d''émission 2]]<>"",Factures[[#This Row],[Date de paiement 2]]=""),"en attente de paiement",IF(Factures[[#This Row],[Montant 2]]<>"","A FACTURER",""))) ->  | V16: =IF(Factures[[#This Row],[Date de paiement 3]]="",Factures[[#This Row],[Restant dû 2]],Factures[[#This Row],[Restant dû 2]]-Factures[[#This Row],[Montant 3]]) -> 0 | W16: =IF(AND([Montant dû 3]<>Factures[[#This Row],[Montant 3]],Factures[[#This Row],[Date de paiement 3]]<>""),"facture close",IF(AND(Factures[[#This Row],[Date d''émission 3]]<>"",Factures[[#This Row],[Date de paiement 4]]=""),"en attente de paiement",IF(Factures[[#This Row],[Montant 3]]<>"","A FACTURER",""))) ->  | AB16: =IF(Factures[[#This Row],[Date de paiement 4]]="",Factures[[#This Row],[Montant dû 3]],Factures[[#This Row],[Montant dû 3]]-Factures[[#This Row],[Montant 4]]) -> 0 | AC16: =IF(AND([Montant dû 4]<>Factures[[#This Row],[Montant 4]],Factures[[#This Row],[Date de paiement 4]]<>""),"facture close",IF(AND(Factures[[#This Row],[Date d''émission 4]]<>"",Factures[[#This Row],[Date de paiement 4]]=""),"en attente de paiement",IF(Factures[[#This Row],[Montant 4]]<>"","A FACTURER",""))) ->  | AD16: =Factures[[#This Row],[Montant dû 4]]+Factures[[#This Row],[Montant 4]]+Factures[[#This Row],[Montant 3]]+Factures[[#This Row],[Montant 2]]+Factures[[#This Row],[Montant 1]]+Factures[[#This Row],[Restant dû 2]] -> 2500 | AI16: =IF(A16="","",IF(COUNTIF(A$3:A16,A16)=1,MAX(AI$2:AI15)+1,"")) ->  | AK16: 14
A17: =IF(ISERROR(Dossier[[#This Row],[NOM]]),"",Dossier[[#This Row],[NOM]]) -> Groupe C | B17: =Dossier[[#This Row],[Nom du dossier]] -> Demi-journées mars avril 2017 | C17: =#REF! ->  | D17: =#REF! ->  | E17: =Factures[[#This Row],[Montant 1]]+Factures[[#This Row],[Montant 2]]+Factures[[#This Row],[Montant 3]]+Factures[[#This Row],[Montant 4]] -> 200 | F17: 200 | G17: 17-2-5 | H17: 2017-02-22 | I17: 2017-05-23 | J17: =IF(Factures[[#This Row],[Date de paiement 1]]<>"",Factures[[#This Row],[Facturation totale]]-Factures[[#This Row],[Montant 1]],Factures[[#This Row],[Facturation totale]]) -> 0 | K17: =IF(Factures[[#This Row],[Date d''émission 1]]="","A FACTURER",IF(Factures[[#This Row],[Date de paiement 1]]="","En attente de paiement", "Facture close")) -> Facture close | P17: =IF(Factures[[#This Row],[Date de paiement 2]]="",Factures[[#This Row],[Restant dû 1]],Factures[[#This Row],[Restant dû 1]]-Factures[[#This Row],[Montant 2]]) -> 0 | Q17: =IF(AND(Factures[[#This Row],[Restant dû 2]]<>Factures[[#This Row],[Montant 2]],Factures[[#This Row],[Date de paiement 2]]<>""),"facture close",IF(AND(Factures[[#This Row],[Date d''émission 2]]<>"",Factures[[#This Row],[Date de paiement 2]]=""),"en attente de paiement",IF(Factures[[#This Row],[Montant 2]]<>"","A FACTURER",""))) ->  | V17: =IF(Factures[[#This Row],[Date de paiement 3]]="",Factures[[#This Row],[Restant dû 2]],Factures[[#This Row],[Restant dû 2]]-Factures[[#This Row],[Montant 3]]) -> 0 | W17: =IF(AND([Montant dû 3]<>Factures[[#This Row],[Montant 3]],Factures[[#This Row],[Date de paiement 3]]<>""),"facture close",IF(AND(Factures[[#This Row],[Date d''émission 3]]<>"",Factures[[#This Row],[Date de paiement 4]]=""),"en attente de paiement",IF(Factures[[#This Row],[Montant 3]]<>"","A FACTURER",""))) ->  | AB17: =IF(Factures[[#This Row],[Date de paiement 4]]="",Factures[[#This Row],[Montant dû 3]],Factures[[#This Row],[Montant dû 3]]-Factures[[#This Row],[Montant 4]]) -> 0 | AC17: =IF(AND([Montant dû 4]<>Factures[[#This Row],[Montant 4]],Factures[[#This Row],[Date de paiement 4]]<>""),"facture close",IF(AND(Factures[[#This Row],[Date d''émission 4]]<>"",Factures[[#This Row],[Date de paiement 4]]=""),"en attente de paiement",IF(Factures[[#This Row],[Montant 4]]<>"","A FACTURER",""))) ->  | AD17: =Factures[[#This Row],[Montant dû 4]]+Factures[[#This Row],[Montant 4]]+Factures[[#This Row],[Montant 3]]+Factures[[#This Row],[Montant 2]]+Factures[[#This Row],[Montant 1]]+Factures[[#This Row],[Restant dû 2]] -> 200 | AI17: =IF(A17="","",IF(COUNTIF(A$3:A17,A17)=1,MAX(AI$2:AI16)+1,"")) ->  | AK17: 15
A18: =IF(ISERROR(Dossier[[#This Row],[NOM]]),"",Dossier[[#This Row],[NOM]]) -> cdh | B18: =Dossier[[#This Row],[Nom du dossier]] -> Demi-journées mai juin 2017 | C18: =#REF! ->  | D18: =#REF! ->  | E18: =Factures[[#This Row],[Montant 1]]+Factures[[#This Row],[Montant 2]]+Factures[[#This Row],[Montant 3]]+Factures[[#This Row],[Montant 4]] -> 1294.61 | F18: 430.8 | G18: 27-03-17 | H18: 2017-03-27 | I18: 2017-09-21 | J18: =IF(Factures[[#This Row],[Date de paiement 1]]<>"",Factures[[#This Row],[Facturation totale]]-Factures[[#This Row],[Montant 1]],Factures[[#This Row],[Facturation totale]]) -> 863.81 | K18: =IF(Factures[[#This Row],[Date d''émission 1]]="","A FACTURER",IF(Factures[[#This Row],[Date de paiement 1]]="","En attente de paiement", "Facture close")) -> Facture close | L18: 431.91 | M18: 17-5-4 | N18: 2017-05-09 | O18: 2017-07-07 | P18: =IF(Factures[[#This Row],[Date de paiement 2]]="",Factures[[#This Row],[Restant dû 1]],Factures[[#This Row],[Restant dû 1]]-Factures[[#This Row],[Montant 2]]) -> 431.9 | Q18: =IF(AND(Factures[[#This Row],[Restant dû 2]]<>Factures[[#This Row],[Montant 2]],Factures[[#This Row],[Date de paiement 2]]<>""),"facture close",IF(AND(Factures[[#This Row],[Date d''émission 2]]<>"",Factures[[#This Row],[Date de paiement 2]]=""),"en attente de paiement",IF(Factures[[#This Row],[Montant 2]]<>"","A FACTURER",""))) -> facture close | R18: 431.9 | S18: 17-5-10 | T18: 2017-05-19 | U18: 2017-07-07 | V18: =IF(Factures[[#This Row],[Date de paiement 3]]="",Factures[[#This Row],[Restant dû 2]],Factures[[#This Row],[Restant dû 2]]-Factures[[#This Row],[Montant 3]]) -> 1.705302566e-13 | W18: =IF(AND([Montant dû 3]<>Factures[[#This Row],[Montant 3]],Factures[[#This Row],[Date de paiement 3]]<>""),"facture close",IF(AND(Factures[[#This Row],[Date d''émission 3]]<>"",Factures[[#This Row],[Date de paiement 4]]=""),"en attente de paiement",IF(Factures[[#This Row],[Montant 3]]<>"","A FACTURER",""))) -> facture close | AB18: =IF(Factures[[#This Row],[Date de paiement 4]]="",Factures[[#This Row],[Montant dû 3]],Factures[[#This Row],[Montant dû 3]]-Factures[[#This Row],[Montant 4]]) -> 1.705302566e-13 | AC18: =IF(AND([Montant dû 4]<>Factures[[#This Row],[Montant 4]],Factures[[#This Row],[Date de paiement 4]]<>""),"facture close",IF(AND(Factures[[#This Row],[Date d''émission 4]]<>"",Factures[[#This Row],[Date de paiement 4]]=""),"en attente de paiement",IF(Factures[[#This Row],[Montant 4]]<>"","A FACTURER",""))) ->  | AD18: =Factures[[#This Row],[Montant dû 4]]+Factures[[#This Row],[Montant 4]]+Factures[[#This Row],[Montant 3]]+Factures[[#This Row],[Montant 2]]+Factures[[#This Row],[Montant 1]]+Factures[[#This Row],[Restant dû 2]] -> 1726.51 | AI18: =IF(A18="","",IF(COUNTIF(A$3:A18,A18)=1,MAX(AI$2:AI17)+1,"")) ->  | AK18: 16
A19: =IF(ISERROR(Dossier[[#This Row],[NOM]]),"",Dossier[[#This Row],[NOM]]) -> 0 | B19: =Dossier[[#This Row],[Nom du dossier]] -> 0 | C19: =#REF! ->  | D19: =#REF! ->  | E19: =Factures[[#This Row],[Montant 1]]+Factures[[#This Row],[Montant 2]]+Factures[[#This Row],[Montant 3]]+Factures[[#This Row],[Montant 4]] -> 6250 | F19: 4600 | G19: 17-11-2 | H19: 2017-11-21 | I19: 2018-01-15 | J19: =IF(Factures[[#This Row],[Date de paiement 1]]<>"",Factures[[#This Row],[Facturation totale]]-Factures[[#This Row],[Montant 1]],Factures[[#This Row],[Facturation totale]]) -> 1650 | K19: =IF(Factures[[#This Row],[Date d''émission 1]]="","A FACTURER",IF(Factures[[#This Row],[Date de paiement 1]]="","En attente de paiement", "Facture close")) -> Facture close | L19: 1650 | M19: 17-11-3 | N19: 2017-11-21 | O19: 2018-01-15 | P19: =IF(Factures[[#This Row],[Date de paiement 2]]="",Factures[[#This Row],[Restant dû 1]],Factures[[#This Row],[Restant dû 1]]-Factures[[#This Row],[Montant 2]]) -> 0 | Q19: =IF(AND(Factures[[#This Row],[Restant dû 2]]<>Factures[[#This Row],[Montant 2]],Factures[[#This Row],[Date de paiement 2]]<>""),"facture close",IF(AND(Factures[[#This Row],[Date d''émission 2]]<>"",Factures[[#This Row],[Date de paiement 2]]=""),"en attente de paiement",IF(Factures[[#This Row],[Montant 2]]<>"","A FACTURER",""))) -> facture close | V19: =IF(Factures[[#This Row],[Date de paiement 3]]="",Factures[[#This Row],[Restant dû 2]],Factures[[#This Row],[Restant dû 2]]-Factures[[#This Row],[Montant 3]]) -> 0 | W19: =IF(AND([Montant dû 3]<>Factures[[#This Row],[Montant 3]],Factures[[#This Row],[Date de paiement 3]]<>""),"facture close",IF(AND(Factures[[#This Row],[Date d''émission 3]]<>"",Factures[[#This Row],[Date de paiement 4]]=""),"en attente de paiement",IF(Factures[[#This Row],[Montant 3]]<>"","A FACTURER",""))) ->  | AB19: =IF(Factures[[#This Row],[Date de paiement 4]]="",Factures[[#This Row],[Montant dû 3]],Factures[[#This Row],[Montant dû 3]]-Factures[[#This Row],[Montant 4]]) -> 0 | AC19: =IF(AND([Montant dû 4]<>Factures[[#This Row],[Montant 4]],Factures[[#This Row],[Date de paiement 4]]<>""),"facture close",IF(AND(Factures[[#This Row],[Date d''émission 4]]<>"",Factures[[#This Row],[Date de paiement 4]]=""),"en attente de paiement",IF(Factures[[#This Row],[Montant 4]]<>"","A FACTURER",""))) ->  | AD19: =Factures[[#This Row],[Montant dû 4]]+Factures[[#This Row],[Montant 4]]+Factures[[#This Row],[Montant 3]]+Factures[[#This Row],[Montant 2]]+Factures[[#This Row],[Montant 1]]+Factures[[#This Row],[Restant dû 2]] -> 6250 | AI19: =IF(A19="","",IF(COUNTIF(A$3:A19,A19)=1,MAX(AI$2:AI18)+1,"")) -> 9 | AK19: 17
AD20: =Factures[[#This Row],[Montant dû 4]]+Factures[[#This Row],[Montant 4]]+Factures[[#This Row],[Montant 3]]+Factures[[#This Row],[Montant 2]]+Factures[[#This Row],[Montant 1]]+Factures[[#This Row],[Restant dû 2]] -> 0 | AI20: =IF(A20="","",IF(COUNTIF(A$3:A20,A20)=1,MAX(AI$2:AI19)+1,"")) ->  | AK20: 18
AD21: =Factures[[#This Row],[Montant dû 4]]+Factures[[#This Row],[Montant 4]]+Factures[[#This Row],[Montant 3]]+Factures[[#This Row],[Montant 2]]+Factures[[#This Row],[Montant 1]]+Factures[[#This Row],[Restant dû 2]] -> 0 | AI21: =IF(A21="","",IF(COUNTIF(A$3:A21,A21)=1,MAX(AI$2:AI20)+1,"")) ->  | AK21: 19
AD22: =Factures[[#This Row],[Montant dû 4]]+Factures[[#This Row],[Montant 4]]+Factures[[#This Row],[Montant 3]]+Factures[[#This Row],[Montant 2]]+Factures[[#This Row],[Montant 1]]+Factures[[#This Row],[Restant dû 2]] -> 0 | AI22: =IF(A22="","",IF(COUNTIF(A$3:A22,A22)=1,MAX(AI$2:AI21)+1,"")) ->  | AK22: 20
AD23: =Factures[[#This Row],[Montant dû 4]]+Factures[[#This Row],[Montant 4]]+Factures[[#This Row],[Montant 3]]+Factures[[#This Row],[Montant 2]]+Factures[[#This Row],[Montant 1]]+Factures[[#This Row],[Restant dû 2]] -> 0 | AI23: =IF(A23="","",IF(COUNTIF(A$3:A23,A23)=1,MAX(AI$2:AI22)+1,"")) ->  | AK23: 21
AD24: =Factures[[#This Row],[Montant dû 4]]+Factures[[#This Row],[Montant 4]]+Factures[[#This Row],[Montant 3]]+Factures[[#This Row],[Montant 2]]+Factures[[#This Row],[Montant 1]]+Factures[[#This Row],[Restant dû 2]] -> 0 | AI24: =IF(A24="","",IF(COUNTIF(A$3:A24,A24)=1,MAX(AI$2:AI23)+1,"")) ->  | AK24: 22
AD25: =Factures[[#This Row],[Montant dû 4]]+Factures[[#This Row],[Montant 4]]+Factures[[#This Row],[Montant 3]]+Factures[[#This Row],[Montant 2]]+Factures[[#This Row],[Montant 1]]+Factures[[#This Row],[Restant dû 2]] -> 0 | AI25: =IF(A25="","",IF(COUNTIF(A$3:A25,A25)=1,MAX(AI$2:AI24)+1,"")) ->  | AK25: 23
AD26: =Factures[[#This Row],[Montant dû 4]]+Factures[[#This Row],[Montant 4]]+Factures[[#This Row],[Montant 3]]+Factures[[#This Row],[Montant 2]]+Factures[[#This Row],[Montant 1]]+Factures[[#This Row],[Restant dû 2]] -> 0 | AI26: =IF(A26="","",IF(COUNTIF(A$3:A26,A26)=1,MAX(AI$2:AI25)+1,"")) ->  | AK26: 24
AD27: =Factures[[#This Row],[Montant dû 4]]+Factures[[#This Row],[Montant 4]]+Factures[[#This Row],[Montant 3]]+Factures[[#This Row],[Montant 2]]+Factures[[#This Row],[Montant 1]]+Factures[[#This Row],[Restant dû 2]] -> 0 | AI27: =IF(A27="","",IF(COUNTIF(A$3:A27,A27)=1,MAX(AI$2:AI26)+1,"")) ->  | AK27: 25
AD28: =Factures[[#This Row],[Montant dû 4]]+Factures[[#This Row],[Montant 4]]+Factures[[#This Row],[Montant 3]]+Factures[[#This Row],[Montant 2]]+Factures[[#This Row],[Montant 1]]+Factures[[#This Row],[Restant dû 2]] -> 0 | AI28: =IF(A28="","",IF(COUNTIF(A$3:A28,A28)=1,MAX(AI$2:AI27)+1,"")) ->  | AK28: 26
AD29: =Factures[[#This Row],[Montant dû 4]]+Factures[[#This Row],[Montant 4]]+Factures[[#This Row],[Montant 3]]+Factures[[#This Row],[Montant 2]]+Factures[[#This Row],[Montant 1]]+Factures[[#This Row],[Restant dû 2]] -> 0 | AI29: =IF(A29="","",IF(COUNTIF(A$3:A29,A29)=1,MAX(AI$2:AI28)+1,"")) ->  | AK29: 27
AD30: =Factures[[#This Row],[Montant dû 4]]+Factures[[#This Row],[Montant 4]]+Factures[[#This Row],[Montant 3]]+Factures[[#This Row],[Montant 2]]+Factures[[#This Row],[Montant 1]]+Factures[[#This Row],[Restant dû 2]] -> 0 | AI30: =IF(A30="","",IF(COUNTIF(A$3:A30,A30)=1,MAX(AI$2:AI29)+1,"")) ->  | AK30: 28
AD31: =Factures[[#This Row],[Montant dû 4]]+Factures[[#This Row],[Montant 4]]+Factures[[#This Row],[Montant 3]]+Factures[[#This Row],[Montant 2]]+Factures[[#This Row],[Montant 1]]+Factures[[#This Row],[Restant dû 2]] -> 0 | AF31: =2166+1800 -> 3966 | AG31: a imputer sur 2017 | AI31: =IF(A31="","",IF(COUNTIF(A$3:A31,A31)=1,MAX(AI$2:AI30)+1,"")) ->  | AK31: 29
AD32: =Factures[[#This Row],[Montant dû 4]]+Factures[[#This Row],[Montant 4]]+Factures[[#This Row],[Montant 3]]+Factures[[#This Row],[Montant 2]]+Factures[[#This Row],[Montant 1]]+Factures[[#This Row],[Restant dû 2]] -> 0 | AF32: au lieu de | AG32: =3600+2160 -> 5760 | AI32: =IF(A32="","",IF(COUNTIF(A$3:A32,A32)=1,MAX(AI$2:AI31)+1,"")) ->  | AK32: 30
AD33: =Factures[[#This Row],[Montant dû 4]]+Factures[[#This Row],[Montant 4]]+Factures[[#This Row],[Montant 3]]+Factures[[#This Row],[Montant 2]]+Factures[[#This Row],[Montant 1]]+Factures[[#This Row],[Restant dû 2]] -> 0 | AI33: =IF(A33="","",IF(COUNTIF(A$3:A33,A33)=1,MAX(AI$2:AI32)+1,"")) ->  | AK33: 31
AD34: =Factures[[#This Row],[Montant dû 4]]+Factures[[#This Row],[Montant 4]]+Factures[[#This Row],[Montant 3]]+Factures[[#This Row],[Montant 2]]+Factures[[#This Row],[Montant 1]]+Factures[[#This Row],[Restant dû 2]] -> 0 | AI34: =IF(A34="","",IF(COUNTIF(A$3:A34,A34)=1,MAX(AI$2:AI33)+1,"")) ->  | AK34: 32
AD35: =Factures[[#This Row],[Montant dû 4]]+Factures[[#This Row],[Montant 4]]+Factures[[#This Row],[Montant 3]]+Factures[[#This Row],[Montant 2]]+Factures[[#This Row],[Montant 1]]+Factures[[#This Row],[Restant dû 2]] -> 0 | AI35: =IF(A35="","",IF(COUNTIF(A$3:A35,A35)=1,MAX(AI$2:AI34)+1,"")) ->  | AK35: 33
AD36: =Factures[[#This Row],[Montant dû 4]]+Factures[[#This Row],[Montant 4]]+Factures[[#This Row],[Montant 3]]+Factures[[#This Row],[Montant 2]]+Factures[[#This Row],[Montant 1]]+Factures[[#This Row],[Restant dû 2]] -> 0 | AI36: =IF(A36="","",IF(COUNTIF(A$3:A36,A36)=1,MAX(AI$2:AI35)+1,"")) ->  | AK36: 34
AD37: =Factures[[#This Row],[Montant dû 4]]+Factures[[#This Row],[Montant 4]]+Factures[[#This Row],[Montant 3]]+Factures[[#This Row],[Montant 2]]+Factures[[#This Row],[Montant 1]]+Factures[[#This Row],[Restant dû 2]] -> 0 | AI37: =IF(A37="","",IF(COUNTIF(A$3:A37,A37)=1,MAX(AI$2:AI36)+1,"")) ->  | AK37: 35
AD38: =Factures[[#This Row],[Montant dû 4]]+Factures[[#This Row],[Montant 4]]+Factures[[#This Row],[Montant 3]]+Factures[[#This Row],[Montant 2]]+Factures[[#This Row],[Montant 1]]+Factures[[#This Row],[Restant dû 2]] -> 0 | AI38: =IF(A38="","",IF(COUNTIF(A$3:A38,A38)=1,MAX(AI$2:AI37)+1,"")) ->  | AK38: 36
AD39: =Factures[[#This Row],[Montant dû 4]]+Factures[[#This Row],[Montant 4]]+Factures[[#This Row],[Montant 3]]+Factures[[#This Row],[Montant 2]]+Factures[[#This Row],[Montant 1]]+Factures[[#This Row],[Restant dû 2]] -> 0 | AI39: =IF(A39="","",IF(COUNTIF(A$3:A39,A39)=1,MAX(AI$2:AI38)+1,"")) ->  | AK39: 37
AD40: =Factures[[#This Row],[Montant dû 4]]+Factures[[#This Row],[Montant 4]]+Factures[[#This Row],[Montant 3]]+Factures[[#This Row],[Montant 2]]+Factures[[#This Row],[Montant 1]]+Factures[[#This Row],[Restant dû 2]] -> 0 | AI40: =IF(A40="","",IF(COUNTIF(A$3:A40,A40)=1,MAX(AI$2:AI39)+1,"")) ->  | AK40: 38
AD41: =Factures[[#This Row],[Montant dû 4]]+Factures[[#This Row],[Montant 4]]+Factures[[#This Row],[Montant 3]]+Factures[[#This Row],[Montant 2]]+Factures[[#This Row],[Montant 1]]+Factures[[#This Row],[Restant dû 2]] -> 0 | AI41: =IF(A41="","",IF(COUNTIF(A$3:A41,A41)=1,MAX(AI$2:AI40)+1,"")) ->  | AK41: 39
AD42: =Factures[[#This Row],[Montant dû 4]]+Factures[[#This Row],[Montant 4]]+Factures[[#This Row],[Montant 3]]+Factures[[#This Row],[Montant 2]]+Factures[[#This Row],[Montant 1]]+Factures[[#This Row],[Restant dû 2]] -> 0 | AI42: =IF(A42="","",IF(COUNTIF(A$3:A42,A42)=1,MAX(AI$2:AI41)+1,"")) ->  | AK42: 40
AD43: =Factures[[#This Row],[Montant dû 4]]+Factures[[#This Row],[Montant 4]]+Factures[[#This Row],[Montant 3]]+Factures[[#This Row],[Montant 2]]+Factures[[#This Row],[Montant 1]]+Factures[[#This Row],[Restant dû 2]] -> 0 | AI43: =IF(A43="","",IF(COUNTIF(A$3:A43,A43)=1,MAX(AI$2:AI42)+1,"")) -> 
AD44: =Factures[[#This Row],[Montant dû 4]]+Factures[[#This Row],[Montant 4]]+Factures[[#This Row],[Montant 3]]+Factures[[#This Row],[Montant 2]]+Factures[[#This Row],[Montant 1]]+Factures[[#This Row],[Restant dû 2]] -> 0 | AI44: =IF(A44="","",IF(COUNTIF(A$3:A44,A44)=1,MAX(AI$2:AI43)+1,"")) -> 
AD45: =Factures[[#This Row],[Montant dû 4]]+Factures[[#This Row],[Montant 4]]+Factures[[#This Row],[Montant 3]]+Factures[[#This Row],[Montant 2]]+Factures[[#This Row],[Montant 1]]+Factures[[#This Row],[Restant dû 2]] -> 0 | AI45: =IF(A45="","",IF(COUNTIF(A$3:A45,A45)=1,MAX(AI$2:AI44)+1,"")) -> 
AD46: =Factures[[#This Row],[Montant dû 4]]+Factures[[#This Row],[Montant 4]]+Factures[[#This Row],[Montant 3]]+Factures[[#This Row],[Montant 2]]+Factures[[#This Row],[Montant 1]]+Factures[[#This Row],[Restant dû 2]] -> 0 | AI46: =IF(A46="","",IF(COUNTIF(A$3:A46,A46)=1,MAX(AI$2:AI45)+1,"")) -> 
AD47: =Factures[[#This Row],[Montant dû 4]]+Factures[[#This Row],[Montant 4]]+Factures[[#This Row],[Montant 3]]+Factures[[#This Row],[Montant 2]]+Factures[[#This Row],[Montant 1]]+Factures[[#This Row],[Restant dû 2]] -> 0 | AI47: =IF(A47="","",IF(COUNTIF(A$3:A47,A47)=1,MAX(AI$2:AI46)+1,"")) -> 
AD48: =Factures[[#This Row],[Montant dû 4]]+Factures[[#This Row],[Montant 4]]+Factures[[#This Row],[Montant 3]]+Factures[[#This Row],[Montant 2]]+Factures[[#This Row],[Montant 1]]+Factures[[#This Row],[Restant dû 2]] -> 0 | AI48: =IF(A48="","",IF(COUNTIF(A$3:A48,A48)=1,MAX(AI$2:AI47)+1,"")) -> 
AD49: =Factures[[#This Row],[Montant dû 4]]+Factures[[#This Row],[Montant 4]]+Factures[[#This Row],[Montant 3]]+Factures[[#This Row],[Montant 2]]+Factures[[#This Row],[Montant 1]]+Factures[[#This Row],[Restant dû 2]] -> 0 | AI49: =IF(A49="","",IF(COUNTIF(A$3:A49,A49)=1,MAX(AI$2:AI48)+1,"")) -> 
AD50: =Factures[[#This Row],[Montant dû 4]]+Factures[[#This Row],[Montant 4]]+Factures[[#This Row],[Montant 3]]+Factures[[#This Row],[Montant 2]]+Factures[[#This Row],[Montant 1]]+Factures[[#This Row],[Restant dû 2]] -> 0 | AI50: =IF(A50="","",IF(COUNTIF(A$3:A50,A50)=1,MAX(AI$2:AI49)+1,"")) -> 
AD51: =Factures[[#This Row],[Montant dû 4]]+Factures[[#This Row],[Montant 4]]+Factures[[#This Row],[Montant 3]]+Factures[[#This Row],[Montant 2]]+Factures[[#This Row],[Montant 1]]+Factures[[#This Row],[Restant dû 2]] -> 0 | AI51: =IF(A51="","",IF(COUNTIF(A$3:A51,A51)=1,MAX(AI$2:AI50)+1,"")) -> 
AD52: =Factures[[#This Row],[Montant dû 4]]+Factures[[#This Row],[Montant 4]]+Factures[[#This Row],[Montant 3]]+Factures[[#This Row],[Montant 2]]+Factures[[#This Row],[Montant 1]]+Factures[[#This Row],[Restant dû 2]] -> 0 | AI52: =IF(A52="","",IF(COUNTIF(A$3:A52,A52)=1,MAX(AI$2:AI51)+1,"")) -> 
AD53: =Factures[[#This Row],[Montant dû 4]]+Factures[[#This Row],[Montant 4]]+Factures[[#This Row],[Montant 3]]+Factures[[#This Row],[Montant 2]]+Factures[[#This Row],[Montant 1]]+Factures[[#This Row],[Restant dû 2]] -> 0 | AI53: =IF(A53="","",IF(COUNTIF(A$3:A53,A53)=1,MAX(AI$2:AI52)+1,"")) -> 
AD54: =Factures[[#This Row],[Montant dû 4]]+Factures[[#This Row],[Montant 4]]+Factures[[#This Row],[Montant 3]]+Factures[[#This Row],[Montant 2]]+Factures[[#This Row],[Montant 1]]+Factures[[#This Row],[Restant dû 2]] -> 0 | AI54: =IF(A54="","",IF(COUNTIF(A$3:A54,A54)=1,MAX(AI$2:AI53)+1,"")) -> 
AD55: =Factures[[#This Row],[Montant dû 4]]+Factures[[#This Row],[Montant 4]]+Factures[[#This Row],[Montant 3]]+Factures[[#This Row],[Montant 2]]+Factures[[#This Row],[Montant 1]]+Factures[[#This Row],[Restant dû 2]] -> 0 | AI55: =IF(A55="","",IF(COUNTIF(A$3:A55,A55)=1,MAX(AI$2:AI54)+1,"")) -> 
AD56: =Factures[[#This Row],[Montant dû 4]]+Factures[[#This Row],[Montant 4]]+Factures[[#This Row],[Montant 3]]+Factures[[#This Row],[Montant 2]]+Factures[[#This Row],[Montant 1]]+Factures[[#This Row],[Restant dû 2]] -> 0 | AI56: =IF(A56="","",IF(COUNTIF(A$3:A56,A56)=1,MAX(AI$2:AI55)+1,"")) -> 
AD57: =Factures[[#This Row],[Montant dû 4]]+Factures[[#This Row],[Montant 4]]+Factures[[#This Row],[Montant 3]]+Factures[[#This Row],[Montant 2]]+Factures[[#This Row],[Montant 1]]+Factures[[#This Row],[Restant dû 2]] -> 0 | AI57: =IF(A57="","",IF(COUNTIF(A$3:A57,A57)=1,MAX(AI$2:AI56)+1,"")) -> 
AD58: =Factures[[#This Row],[Montant dû 4]]+Factures[[#This Row],[Montant 4]]+Factures[[#This Row],[Montant 3]]+Factures[[#This Row],[Montant 2]]+Factures[[#This Row],[Montant 1]]+Factures[[#This Row],[Restant dû 2]] -> 0 | AI58: =IF(A58="","",IF(COUNTIF(A$3:A58,A58)=1,MAX(AI$2:AI57)+1,"")) -> 
AD59: =Factures[[#This Row],[Montant dû 4]]+Factures[[#This Row],[Montant 4]]+Factures[[#This Row],[Montant 3]]+Factures[[#This Row],[Montant 2]]+Factures[[#This Row],[Montant 1]]+Factures[[#This Row],[Restant dû 2]] -> 0 | AI59: =IF(A59="","",IF(COUNTIF(A$3:A59,A59)=1,MAX(AI$2:AI58)+1,"")) -> 
AD60: =Factures[[#This Row],[Montant dû 4]]+Factures[[#This Row],[Montant 4]]+Factures[[#This Row],[Montant 3]]+Factures[[#This Row],[Montant 2]]+Factures[[#This Row],[Montant 1]]+Factures[[#This Row],[Restant dû 2]] -> 0 | AI60: =IF(A60="","",IF(COUNTIF(A$3:A60,A60)=1,MAX(AI$2:AI59)+1,"")) -> 
AD61: =Factures[[#This Row],[Montant dû 4]]+Factures[[#This Row],[Montant 4]]+Factures[[#This Row],[Montant 3]]+Factures[[#This Row],[Montant 2]]+Factures[[#This Row],[Montant 1]]+Factures[[#This Row],[Restant dû 2]] -> 0 | AI61: =IF(A61="","",IF(COUNTIF(A$3:A61,A61)=1,MAX(AI$2:AI60)+1,"")) -> 
AD62: =Factures[[#This Row],[Montant dû 4]]+Factures[[#This Row],[Montant 4]]+Factures[[#This Row],[Montant 3]]+Factures[[#This Row],[Montant 2]]+Factures[[#This Row],[Montant 1]]+Factures[[#This Row],[Restant dû 2]] -> 0 | AI62: =IF(A62="","",IF(COUNTIF(A$3:A62,A62)=1,MAX(AI$2:AI61)+1,"")) -> 
AD63: =Factures[[#This Row],[Montant dû 4]]+Factures[[#This Row],[Montant 4]]+Factures[[#This Row],[Montant 3]]+Factures[[#This Row],[Montant 2]]+Factures[[#This Row],[Montant 1]]+Factures[[#This Row],[Restant dû 2]] -> 0 | AI63: =IF(A63="","",IF(COUNTIF(A$3:A63,A63)=1,MAX(AI$2:AI62)+1,"")) -> 
AD64: =Factures[[#This Row],[Montant dû 4]]+Factures[[#This Row],[Montant 4]]+Factures[[#This Row],[Montant 3]]+Factures[[#This Row],[Montant 2]]+Factures[[#This Row],[Montant 1]]+Factures[[#This Row],[Restant dû 2]] -> 0 | AI64: =IF(A64="","",IF(COUNTIF(A$3:A64,A64)=1,MAX(AI$2:AI63)+1,"")) -> 
AD65: =Factures[[#This Row],[Montant dû 4]]+Factures[[#This Row],[Montant 4]]+Factures[[#This Row],[Montant 3]]+Factures[[#This Row],[Montant 2]]+Factures[[#This Row],[Montant 1]]+Factures[[#This Row],[Restant dû 2]] -> 0 | AI65: =IF(A65="","",IF(COUNTIF(A$3:A65,A65)=1,MAX(AI$2:AI64)+1,"")) -> 
AD66: =Factures[[#This Row],[Montant dû 4]]+Factures[[#This Row],[Montant 4]]+Factures[[#This Row],[Montant 3]]+Factures[[#This Row],[Montant 2]]+Factures[[#This Row],[Montant 1]]+Factures[[#This Row],[Restant dû 2]] -> 0 | AI66: =IF(A66="","",IF(COUNTIF(A$3:A66,A66)=1,MAX(AI$2:AI65)+1,"")) -> 
AD67: =Factures[[#This Row],[Montant dû 4]]+Factures[[#This Row],[Montant 4]]+Factures[[#This Row],[Montant 3]]+Factures[[#This Row],[Montant 2]]+Factures[[#This Row],[Montant 1]]+Factures[[#This Row],[Restant dû 2]] -> 0 | AI67: =IF(A67="","",IF(COUNTIF(A$3:A67,A67)=1,MAX(AI$2:AI66)+1,"")) -> 
AD68: =Factures[[#This Row],[Montant dû 4]]+Factures[[#This Row],[Montant 4]]+Factures[[#This Row],[Montant 3]]+Factures[[#This Row],[Montant 2]]+Factures[[#This Row],[Montant 1]]+Factures[[#This Row],[Restant dû 2]] -> 0 | AI68: =IF(A68="","",IF(COUNTIF(A$3:A68,A68)=1,MAX(AI$2:AI67)+1,"")) -> 
AD69: =Factures[[#This Row],[Montant dû 4]]+Factures[[#This Row],[Montant 4]]+Factures[[#This Row],[Montant 3]]+Factures[[#This Row],[Montant 2]]+Factures[[#This Row],[Montant 1]]+Factures[[#This Row],[Restant dû 2]] -> 0 | AI69: =IF(A69="","",IF(COUNTIF(A$3:A69,A69)=1,MAX(AI$2:AI68)+1,"")) -> 
AD70: =Factures[[#This Row],[Montant dû 4]]+Factures[[#This Row],[Montant 4]]+Factures[[#This Row],[Montant 3]]+Factures[[#This Row],[Montant 2]]+Factures[[#This Row],[Montant 1]]+Factures[[#This Row],[Restant dû 2]] -> 0 | AI70: =IF(A70="","",IF(COUNTIF(A$3:A70,A70)=1,MAX(AI$2:AI69)+1,"")) -> 
AD71: =Factures[[#This Row],[Montant dû 4]]+Factures[[#This Row],[Montant 4]]+Factures[[#This Row],[Montant 3]]+Factures[[#This Row],[Montant 2]]+Factures[[#This Row],[Montant 1]]+Factures[[#This Row],[Restant dû 2]] -> 0 | AI71: =IF(A71="","",IF(COUNTIF(A$3:A71,A71)=1,MAX(AI$2:AI70)+1,"")) -> 
AD72: =Factures[[#This Row],[Montant dû 4]]+Factures[[#This Row],[Montant 4]]+Factures[[#This Row],[Montant 3]]+Factures[[#This Row],[Montant 2]]+Factures[[#This Row],[Montant 1]]+Factures[[#This Row],[Restant dû 2]] -> 0 | AI72: =IF(A72="","",IF(COUNTIF(A$3:A72,A72)=1,MAX(AI$2:AI71)+1,"")) -> 
AD73: =Factures[[#This Row],[Montant dû 4]]+Factures[[#This Row],[Montant 4]]+Factures[[#This Row],[Montant 3]]+Factures[[#This Row],[Montant 2]]+Factures[[#This Row],[Montant 1]]+Factures[[#This Row],[Restant dû 2]] -> 0 | AI73: =IF(A73="","",IF(COUNTIF(A$3:A73,A73)=1,MAX(AI$2:AI72)+1,"")) -> 
AD74: =Factures[[#This Row],[Montant dû 4]]+Factures[[#This Row],[Montant 4]]+Factures[[#This Row],[Montant 3]]+Factures[[#This Row],[Montant 2]]+Factures[[#This Row],[Montant 1]]+Factures[[#This Row],[Restant dû 2]] -> 0 | AI74: =IF(A74="","",IF(COUNTIF(A$3:A74,A74)=1,MAX(AI$2:AI73)+1,"")) -> 
AD75: =Factures[[#This Row],[Montant dû 4]]+Factures[[#This Row],[Montant 4]]+Factures[[#This Row],[Montant 3]]+Factures[[#This Row],[Montant 2]]+Factures[[#This Row],[Montant 1]]+Factures[[#This Row],[Restant dû 2]] -> 0 | AI75: =IF(A75="","",IF(COUNTIF(A$3:A75,A75)=1,MAX(AI$2:AI74)+1,"")) -> 
AD76: =Factures[[#This Row],[Montant dû 4]]+Factures[[#This Row],[Montant 4]]+Factures[[#This Row],[Montant 3]]+Factures[[#This Row],[Montant 2]]+Factures[[#This Row],[Montant 1]]+Factures[[#This Row],[Restant dû 2]] -> 0 | AI76: =IF(A76="","",IF(COUNTIF(A$3:A76,A76)=1,MAX(AI$2:AI75)+1,"")) -> 
AD77: =Factures[[#This Row],[Montant dû 4]]+Factures[[#This Row],[Montant 4]]+Factures[[#This Row],[Montant 3]]+Factures[[#This Row],[Montant 2]]+Factures[[#This Row],[Montant 1]]+Factures[[#This Row],[Restant dû 2]] -> 0 | AI77: =IF(A77="","",IF(COUNTIF(A$3:A77,A77)=1,MAX(AI$2:AI76)+1,"")) -> 
AD78: =Factures[[#This Row],[Montant dû 4]]+Factures[[#This Row],[Montant 4]]+Factures[[#This Row],[Montant 3]]+Factures[[#This Row],[Montant 2]]+Factures[[#This Row],[Montant 1]]+Factures[[#This Row],[Restant dû 2]] -> 0 | AI78: =IF(A78="","",IF(COUNTIF(A$3:A78,A78)=1,MAX(AI$2:AI77)+1,"")) -> 
AD79: =Factures[[#This Row],[Montant dû 4]]+Factures[[#This Row],[Montant 4]]+Factures[[#This Row],[Montant 3]]+Factures[[#This Row],[Montant 2]]+Factures[[#This Row],[Montant 1]]+Factures[[#This Row],[Restant dû 2]] -> 0 | AI79: =IF(A79="","",IF(COUNTIF(A$3:A79,A79)=1,MAX(AI$2:AI78)+1,"")) -> 
AD80: =Factures[[#This Row],[Montant dû 4]]+Factures[[#This Row],[Montant 4]]+Factures[[#This Row],[Montant 3]]+Factures[[#This Row],[Montant 2]]+Factures[[#This Row],[Montant 1]]+Factures[[#This Row],[Restant dû 2]] -> 0 | AI80: =IF(A80="","",IF(COUNTIF(A$3:A80,A80)=1,MAX(AI$2:AI79)+1,"")) -> 
AD81: =Factures[[#This Row],[Montant dû 4]]+Factures[[#This Row],[Montant 4]]+Factures[[#This Row],[Montant 3]]+Factures[[#This Row],[Montant 2]]+Factures[[#This Row],[Montant 1]]+Factures[[#This Row],[Restant dû 2]] -> 0 | AI81: =IF(A81="","",IF(COUNTIF(A$3:A81,A81)=1,MAX(AI$2:AI80)+1,"")) -> 
AD82: =Factures[[#This Row],[Montant dû 4]]+Factures[[#This Row],[Montant 4]]+Factures[[#This Row],[Montant 3]]+Factures[[#This Row],[Montant 2]]+Factures[[#This Row],[Montant 1]]+Factures[[#This Row],[Restant dû 2]] -> 0 | AI82: =IF(A82="","",IF(COUNTIF(A$3:A82,A82)=1,MAX(AI$2:AI81)+1,"")) -> 
AD83: =Factures[[#This Row],[Montant dû 4]]+Factures[[#This Row],[Montant 4]]+Factures[[#This Row],[Montant 3]]+Factures[[#This Row],[Montant 2]]+Factures[[#This Row],[Montant 1]]+Factures[[#This Row],[Restant dû 2]] -> 0 | AI83: =IF(A83="","",IF(COUNTIF(A$3:A83,A83)=1,MAX(AI$2:AI82)+1,"")) -> 
AD84: =Factures[[#This Row],[Montant dû 4]]+Factures[[#This Row],[Montant 4]]+Factures[[#This Row],[Montant 3]]+Factures[[#This Row],[Montant 2]]+Factures[[#This Row],[Montant 1]]+Factures[[#This Row],[Restant dû 2]] -> 0 | AI84: =IF(A84="","",IF(COUNTIF(A$3:A84,A84)=1,MAX(AI$2:AI83)+1,"")) -> 
AD85: =Factures[[#This Row],[Montant dû 4]]+Factures[[#This Row],[Montant 4]]+Factures[[#This Row],[Montant 3]]+Factures[[#This Row],[Montant 2]]+Factures[[#This Row],[Montant 1]]+Factures[[#This Row],[Restant dû 2]] -> 0 | AI85: =IF(A85="","",IF(COUNTIF(A$3:A85,A85)=1,MAX(AI$2:AI84)+1,"")) -> 
AD86: =Factures[[#This Row],[Montant dû 4]]+Factures[[#This Row],[Montant 4]]+Factures[[#This Row],[Montant 3]]+Factures[[#This Row],[Montant 2]]+Factures[[#This Row],[Montant 1]]+Factures[[#This Row],[Restant dû 2]] -> 0 | AI86: =IF(A86="","",IF(COUNTIF(A$3:A86,A86)=1,MAX(AI$2:AI85)+1,"")) -> 
AD87: =Factures[[#This Row],[Montant dû 4]]+Factures[[#This Row],[Montant 4]]+Factures[[#This Row],[Montant 3]]+Factures[[#This Row],[Montant 2]]+Factures[[#This Row],[Montant 1]]+Factures[[#This Row],[Restant dû 2]] -> 0 | AI87: =IF(A87="","",IF(COUNTIF(A$3:A87,A87)=1,MAX(AI$2:AI86)+1,"")) -> 
AD88: =Factures[[#This Row],[Montant dû 4]]+Factures[[#This Row],[Montant 4]]+Factures[[#This Row],[Montant 3]]+Factures[[#This Row],[Montant 2]]+Factures[[#This Row],[Montant 1]]+Factures[[#This Row],[Restant dû 2]] -> 0 | AI88: =IF(A88="","",IF(COUNTIF(A$3:A88,A88)=1,MAX(AI$2:AI87)+1,"")) -> 
AD89: =Factures[[#This Row],[Montant dû 4]]+Factures[[#This Row],[Montant 4]]+Factures[[#This Row],[Montant 3]]+Factures[[#This Row],[Montant 2]]+Factures[[#This Row],[Montant 1]]+Factures[[#This Row],[Restant dû 2]] -> 0 | AI89: =IF(A89="","",IF(COUNTIF(A$3:A89,A89)=1,MAX(AI$2:AI88)+1,"")) -> 
AD90: =Factures[[#This Row],[Montant dû 4]]+Factures[[#This Row],[Montant 4]]+Factures[[#This Row],[Montant 3]]+Factures[[#This Row],[Montant 2]]+Factures[[#This Row],[Montant 1]]+Factures[[#This Row],[Restant dû 2]] -> 0 | AI90: =IF(A90="","",IF(COUNTIF(A$3:A90,A90)=1,MAX(AI$2:AI89)+1,"")) -> 
AD91: =Factures[[#This Row],[Montant dû 4]]+Factures[[#This Row],[Montant 4]]+Factures[[#This Row],[Montant 3]]+Factures[[#This Row],[Montant 2]]+Factures[[#This Row],[Montant 1]]+Factures[[#This Row],[Restant dû 2]] -> 0 | AI91: =IF(A91="","",IF(COUNTIF(A$3:A91,A91)=1,MAX(AI$2:AI90)+1,"")) -> 
AD92: =Factures[[#This Row],[Montant dû 4]]+Factures[[#This Row],[Montant 4]]+Factures[[#This Row],[Montant 3]]+Factures[[#This Row],[Montant 2]]+Factures[[#This Row],[Montant 1]]+Factures[[#This Row],[Restant dû 2]] -> 0 | AI92: =IF(A92="","",IF(COUNTIF(A$3:A92,A92)=1,MAX(AI$2:AI91)+1,"")) -> 
AD93: =Factures[[#This Row],[Montant dû 4]]+Factures[[#This Row],[Montant 4]]+Factures[[#This Row],[Montant 3]]+Factures[[#This Row],[Montant 2]]+Factures[[#This Row],[Montant 1]]+Factures[[#This Row],[Restant dû 2]] -> 0 | AI93: =IF(A93="","",IF(COUNTIF(A$3:A93,A93)=1,MAX(AI$2:AI92)+1,"")) -> 
AD94: =Factures[[#This Row],[Montant dû 4]]+Factures[[#This Row],[Montant 4]]+Factures[[#This Row],[Montant 3]]+Factures[[#This Row],[Montant 2]]+Factures[[#This Row],[Montant 1]]+Factures[[#This Row],[Restant dû 2]] -> 0 | AI94: =IF(A94="","",IF(COUNTIF(A$3:A94,A94)=1,MAX(AI$2:AI93)+1,"")) -> 
AD95: =Factures[[#This Row],[Montant dû 4]]+Factures[[#This Row],[Montant 4]]+Factures[[#This Row],[Montant 3]]+Factures[[#This Row],[Montant 2]]+Factures[[#This Row],[Montant 1]]+Factures[[#This Row],[Restant dû 2]] -> 0 | AI95: =IF(A95="","",IF(COUNTIF(A$3:A95,A95)=1,MAX(AI$2:AI94)+1,"")) -> 
AD96: =Factures[[#This Row],[Montant dû 4]]+Factures[[#This Row],[Montant 4]]+Factures[[#This Row],[Montant 3]]+Factures[[#This Row],[Montant 2]]+Factures[[#This Row],[Montant 1]]+Factures[[#This Row],[Restant dû 2]] -> 0 | AI96: =IF(A96="","",IF(COUNTIF(A$3:A96,A96)=1,MAX(AI$2:AI95)+1,"")) -> 
AD97: =Factures[[#This Row],[Montant dû 4]]+Factures[[#This Row],[Montant 4]]+Factures[[#This Row],[Montant 3]]+Factures[[#This Row],[Montant 2]]+Factures[[#This Row],[Montant 1]]+Factures[[#This Row],[Restant dû 2]] -> 0 | AI97: =IF(A97="","",IF(COUNTIF(A$3:A97,A97)=1,MAX(AI$2:AI96)+1,"")) -> 
AD98: =Factures[[#This Row],[Montant dû 4]]+Factures[[#This Row],[Montant 4]]+Factures[[#This Row],[Montant 3]]+Factures[[#This Row],[Montant 2]]+Factures[[#This Row],[Montant 1]]+Factures[[#This Row],[Restant dû 2]] -> 0 | AI98: =IF(A98="","",IF(COUNTIF(A$3:A98,A98)=1,MAX(AI$2:AI97)+1,"")) -> 
AD99: =Factures[[#This Row],[Montant dû 4]]+Factures[[#This Row],[Montant 4]]+Factures[[#This Row],[Montant 3]]+Factures[[#This Row],[Montant 2]]+Factures[[#This Row],[Montant 1]]+Factures[[#This Row],[Restant dû 2]] -> 0 | AI99: =IF(A99="","",IF(COUNTIF(A$3:A99,A99)=1,MAX(AI$2:AI98)+1,"")) -> 
AD100: =Factures[[#This Row],[Montant dû 4]]+Factures[[#This Row],[Montant 4]]+Factures[[#This Row],[Montant 3]]+Factures[[#This Row],[Montant 2]]+Factures[[#This Row],[Montant 1]]+Factures[[#This Row],[Restant dû 2]] -> 0 | AI100: =IF(A100="","",IF(COUNTIF(A$3:A100,A100)=1,MAX(AI$2:AI99)+1,"")) -> 
AD101: =Factures[[#This Row],[Montant dû 4]]+Factures[[#This Row],[Montant 4]]+Factures[[#This Row],[Montant 3]]+Factures[[#This Row],[Montant 2]]+Factures[[#This Row],[Montant 1]]+Factures[[#This Row],[Restant dû 2]] -> 0 | AI101: =IF(A101="","",IF(COUNTIF(A$3:A101,A101)=1,MAX(AI$2:AI100)+1,"")) -> 
AD102: =Factures[[#This Row],[Montant dû 4]]+Factures[[#This Row],[Montant 4]]+Factures[[#This Row],[Montant 3]]+Factures[[#This Row],[Montant 2]]+Factures[[#This Row],[Montant 1]]+Factures[[#This Row],[Restant dû 2]] -> 0 | AI102: =IF(A102="","",IF(COUNTIF(A$3:A102,A102)=1,MAX(AI$2:AI101)+1,"")) -> 
AD103: =Factures[[#This Row],[Montant dû 4]]+Factures[[#This Row],[Montant 4]]+Factures[[#This Row],[Montant 3]]+Factures[[#This Row],[Montant 2]]+Factures[[#This Row],[Montant 1]]+Factures[[#This Row],[Restant dû 2]] -> 0 | AI103: =IF(A103="","",IF(COUNTIF(A$3:A103,A103)=1,MAX(AI$2:AI102)+1,"")) -> 
AD104: =Factures[[#This Row],[Montant dû 4]]+Factures[[#This Row],[Montant 4]]+Factures[[#This Row],[Montant 3]]+Factures[[#This Row],[Montant 2]]+Factures[[#This Row],[Montant 1]]+Factures[[#This Row],[Restant dû 2]] -> 0 | AI104: =IF(A104="","",IF(COUNTIF(A$3:A104,A104)=1,MAX(AI$2:AI103)+1,"")) -> 
AD105: =Factures[[#This Row],[Montant dû 4]]+Factures[[#This Row],[Montant 4]]+Factures[[#This Row],[Montant 3]]+Factures[[#This Row],[Montant 2]]+Factures[[#This Row],[Montant 1]]+Factures[[#This Row],[Restant dû 2]] -> 0 | AI105: =IF(A105="","",IF(COUNTIF(A$3:A105,A105)=1,MAX(AI$2:AI104)+1,"")) -> 
A106: Total | B106: =SUBTOTAL(103,[Dossier]) -> 17 | E106: =SUBTOTAL(109,[Facturation totale]) -> 62273.39 | F106: =SUBTOTAL(109,[Montant 1]) -> 23975.1 | L106: =SUBTOTAL(101,[Montant 2]) -> 2202.643333 | R106: =SUBTOTAL(104,[Montant 3]) -> 17180 | X106: =SUBTOTAL(104,[Montant 4]) -> 0 | AD106: =SUBTOTAL(109,[somme]) -> 90247.89

Sheet Recap par client
A1: Sélectionner le nom du client dans la liste | B1: cdh | C1: Groupe C | D1: Liste déroulante à partir de la plage dynamique nommée clients basée sur la liste en AL de Facturation
A3: Dossiers | B3: Facturation totale
A4: =IF(ROWS($1:1)<=COUNTIF(Factures[Nom],$C$1),INDEX(Factures[Dossier],SMALL(IF(Factures[Nom]=$C$1,ROW(INDIRECT("1:"&ROWS(Factures[Nom])))),ROWS($1:1))),"") -> Remboursement frais | B4: =IF(ROWS($1:1)<=COUNTIF(Factures[Nom],$C$1),INDEX(Factures[Facturation totale],SMALL(IF(Factures[Nom]=$C$1,ROW(INDIRECT("1:"&ROWS(Factures[Nom])))),ROWS($1:1))),"") -> 2500
A5: =IF(ROWS($1:2)<=COUNTIF(Factures[Nom],$C$1),INDEX(Factures[Dossier],SMALL(IF(Factures[Nom]=$C$1,ROW(INDIRECT("1:"&ROWS(Factures[Nom])))),ROWS($1:2))),"") -> Demi-journées janvier février 2017 | B5: =IF(ROWS($1:2)<=COUNTIF(Factures[Nom],$C$1),INDEX(Factures[Facturation totale],SMALL(IF(Factures[Nom]=$C$1,ROW(INDIRECT("1:"&ROWS(Factures[Nom])))),ROWS($1:2))),"") -> 58.7
A6: =IF(ROWS($1:3)<=COUNTIF(Factures[Nom],$C$1),INDEX(Factures[Dossier],SMALL(IF(Factures[Nom]=$C$1,ROW(INDIRECT("1:"&ROWS(Factures[Nom])))),ROWS($1:3))),"") -> Capital c/MORINA | B6: =IF(ROWS($1:3)<=COUNTIF(Factures[Nom],$C$1),INDEX(Factures[Facturation totale],SMALL(IF(Factures[Nom]=$C$1,ROW(INDIRECT("1:"&ROWS(Factures[Nom])))),ROWS($1:3))),"") -> 1661.61
A7: =IF(ROWS($1:4)<=COUNTIF(Factures[Nom],$C$1),INDEX(Factures[Dossier],SMALL(IF(Factures[Nom]=$C$1,ROW(INDIRECT("1:"&ROWS(Factures[Nom])))),ROWS($1:4))),"") -> capital c/C6 | B7: =IF(ROWS($1:4)<=COUNTIF(Factures[Nom],$C$1),INDEX(Factures[Facturation totale],SMALL(IF(Factures[Nom]=$C$1,ROW(INDIRECT("1:"&ROWS(Factures[Nom])))),ROWS($1:4))),"") -> 2300
A8: =IF(ROWS($1:5)<=COUNTIF(Factures[Nom],$C$1),INDEX(Factures[Dossier],SMALL(IF(Factures[Nom]=$C$1,ROW(INDIRECT("1:"&ROWS(Factures[Nom])))),ROWS($1:5))),"") -> Postulation | B8: =IF(ROWS($1:5)<=COUNTIF(Factures[Nom],$C$1),INDEX(Factures[Facturation totale],SMALL(IF(Factures[Nom]=$C$1,ROW(INDIRECT("1:"&ROWS(Factures[Nom])))),ROWS($1:5))),"") -> 2500
A9: =IF(ROWS($1:6)<=COUNTIF(Factures[Nom],$C$1),INDEX(Factures[Dossier],SMALL(IF(Factures[Nom]=$C$1,ROW(INDIRECT("1:"&ROWS(Factures[Nom])))),ROWS($1:6))),"") -> Demi-journées mars avril 2017 | B9: =IF(ROWS($1:6)<=COUNTIF(Factures[Nom],$C$1),INDEX(Factures[Facturation totale],SMALL(IF(Factures[Nom]=$C$1,ROW(INDIRECT("1:"&ROWS(Factures[Nom])))),ROWS($1:6))),"") -> 200
A10: =IF(ROWS($1:7)<=COUNTIF(Factures[Nom],$C$1),INDEX(Factures[Dossier],SMALL(IF(Factures[Nom]=$C$1,ROW(INDIRECT("1:"&ROWS(Factures[Nom])))),ROWS($1:7))),"") ->  | B10: =IF(ROWS($1:7)<=COUNTIF(Factures[Nom],$C$1),INDEX(Factures[Facturation totale],SMALL(IF(Factures[Nom]=$C$1,ROW(INDIRECT("1:"&ROWS(Factures[Nom])))),ROWS($1:7))),"") -> 
A11: =IF(ROWS($1:8)<=COUNTIF(Factures[Nom],$C$1),INDEX(Factures[Dossier],SMALL(IF(Factures[Nom]=$C$1,ROW(INDIRECT("1:"&ROWS(Factures[Nom])))),ROWS($1:8))),"") ->  | B11: =IF(ROWS($1:8)<=COUNTIF(Factures[Nom],$C$1),INDEX(Factures[Facturation totale],SMALL(IF(Factures[Nom]=$C$1,ROW(INDIRECT("1:"&ROWS(Factures[Nom])))),ROWS($1:8))),"") -> 
A12: =IF(ROWS($1:9)<=COUNTIF(Factures[Nom],$C$1),INDEX(Factures[Dossier],SMALL(IF(Factures[Nom]=$C$1,ROW(INDIRECT("1:"&ROWS(Factures[Nom])))),ROWS($1:9))),"") ->  | B12: =IF(ROWS($1:9)<=COUNTIF(Factures[Nom],$C$1),INDEX(Factures[Facturation totale],SMALL(IF(Factures[Nom]=$C$1,ROW(INDIRECT("1:"&ROWS(Factures[Nom])))),ROWS($1:9))),"") -> 
A13: =IF(ROWS($1:10)<=COUNTIF(Factures[Nom],$C$1),INDEX(Factures[Dossier],SMALL(IF(Factures[Nom]=$C$1,ROW(INDIRECT("1:"&ROWS(Factures[Nom])))),ROWS($1:10))),"") ->  | B13: =IF(ROWS($1:10)<=COUNTIF(Factures[Nom],$C$1),INDEX(Factures[Facturation totale],SMALL(IF(Factures[Nom]=$C$1,ROW(INDIRECT("1:"&ROWS(Factures[Nom])))),ROWS($1:10))),"") -> 
A14: =IF(ROWS($1:11)<=COUNTIF(Factures[Nom],$C$1),INDEX(Factures[Dossier],SMALL(IF(Factures[Nom]=$C$1,ROW(INDIRECT("1:"&ROWS(Factures[Nom])))),ROWS($1:11))),"") ->  | B14: =IF(ROWS($1:11)<=COUNTIF(Factures[Nom],$C$1),INDEX(Factures[Facturation totale],SMALL(IF(Factures[Nom]=$C$1,ROW(INDIRECT("1:"&ROWS(Factures[Nom])))),ROWS($1:11))),"") -> 
C16: Les formules en A et B sont matricielles donc à valider par CTRL+MAJ+ENTREE, la formule se met alors automatiquement entre accolades
